Cogmind - Beta 15 @@@ ROGUE MODE // 2025.08.09 @ 17:23:04 Player: McSaucyNugget Result: Fortifying 0b10! Performance ------------- Evolutions (9) 4500 Regions Visited (36) 7200 Robots Destroyed (678) 3390 Value Destroyed (43187) 43187 Prototype IDs (50) 1000 Alien Tech Used (7) 1400 Bonus (28746) 28746 TOTAL SCORE: 89423 Bonus ------- High Alert Combat Kills 8011 Follower Combat Kills 3346 Entered Garrisons 1600 Used RIF Installer 4000 Network Hubs Disabled 400 Built Enhanced Grunts 300 A7 Reached Mainframe 300 Met R17 at Cetus 500 Met R17 at Research 2000 Met MAIN.C 5000 Destroyed MAIN.C Shell 5000 Win 3000 Friendly Fire -4711 Cogmind --------- Core Integrity 1123/1600 Matter 292/300 Energy 720/720 System Corruption 7% Temperature Cool (0) Movement Treading (143) Location By MAIN.C's Side Parts ------- > --- POWER (4) -------- Light Quantum Reactor Improved Quantum Reactor Zero-point Reactor Zero-point Reactor > --- PROPULSION (6) --- Experimental Biometal Heavy Treads Experimental Biometal Heavy Treads Advanced Heavy Siege Treads > --- UTILITY (12) ----- Advanced Cooling System Experimental Cooling System Experimental Cooling System Huge Storage Unit Spectral Analyzer Experimental Core Analyzer Advanced Particle Accelerator SHELL Armor Graphene Brace Experimental Force Field > --- WEAPON (4) ------- Heavy Quantum Rifle Enhanced Nova Cannon Null Cannon Graviton Cannon > --- INVENTORY (25) --- Armored Heavy Treads Advanced Heavy Siege Treads Compact Battery (200) Energy Well (350) Advanced Matter Compressor (400) Experimental Matter Compressor Experimental Core Analyzer Advanced Kinecellerator Advanced Weapon Cycler Advanced Force Field Long-range Tractor Beam Improved Potential Cannon Railgun Railgun Heavy Linear Accelerator Heavy Hardcell Cannon Heavy Hardcell Cannon Fusion Bomb Launcher Peak State ------------ > --- POWER ------------ Light Quantum Reactor Improved Quantum Reactor Zero-point Reactor Zero-point Reactor > --- PROPULSION ------- Experimental Biometal Heavy Treads Experimental Biometal Heavy Treads Advanced Heavy Siege Treads > --- UTILITY ---------- Advanced Cooling System Experimental Cooling System Experimental Cooling System Huge Storage Unit Spectral Analyzer Experimental Core Analyzer Advanced Particle Accelerator SHELL Armor Graphene Brace Experimental Force Field > --- WEAPON ----------- Heavy Quantum Rifle Heavy Quantum Rifle Enhanced Nova Cannon Null Cannon > --- INVENTORY -------- Armored Heavy Treads Advanced Heavy Siege Treads Compact Battery Energy Well Advanced Matter Compressor Experimental Matter Compressor Experimental Core Analyzer Advanced Kinecellerator Advanced Weapon Cycler Advanced Force Field Long-range Tractor Beam Improved Potential Cannon Railgun Railgun Heavy Linear Accelerator Heavy Hardcell Cannon Heavy Hardcell Cannon Graviton Cannon Fusion Bomb Launcher [Rating: 265] Favorites ----------- Power Quantum Reactor Engine Ion Engine Power Core Reinforced Fission Core Reactor Quantum Reactor Propulsion Light Treads Treads Light Treads Wheel Armored Wheel Utility Huge Storage Unit Device Experimental Cooling System Storage Huge Storage Unit Processor Experimental Core Analyzer Hackware Relay Coupler [Grunt] Protection SHELL Armor Artifact Spacefold Activator Weapon Railgun Energy Gun Heavy Quantum Rifle Energy Cannon Plasma Cannon Ballistic Gun Railgun Ballistic Cannon Magnetic Acceleration Cannon Launcher Grenade Launcher Special Weapon Improved Remote Datajack Impact Weapon Flail Build | -11 -10 -10 -9 -9 -9 -8 -8 -7 -7 -7 -7 -6 -6 -6 -6 -6 -6 -6 -6 -5 -5 -5 -5 -4 -4 -4 -4 -4 -4 -3 -3 -2 -2 -2 -1 -1 ------- Run | Yrd Mat Min Mat Min Exi Min Mat Fac Gar Fac Gar Fac Gar Fac Ext Cet Arc Hub Gar Fac Gar Fac Gar Fac Was Fac Gar Fac Gar Res Tes Res Qua Sec Acc Com Slots Evolved 18 | . . . 2 . . . 2 2 . . . 2 . . . . . . . 2 . . . 2 . . . . . 2 . 2 . . 2 . Power 2 | . . . . . . . . . . . . . . . . . . . . 1 . . . . . . . . . . . 1 . . . . Propulsion 4 | . . . 1 . . . . 1 . . . . . . . . . . . 1 . . . 1 . . . . . . . . . . . . Utility 10 | . . . . . . . 2 1 . . . 1 . . . . . . . . . . . 1 . . . . . 2 . 1 . . 2 . Weapon 2 | . . . 1 . . . . . . . . 1 . . . . . . . . . . . . . . . . . . . . . . . . Parts Attached 355 | 4 9 4 14 1 . . 23 16 12 2 10 7 5 1 7 9 2 7 3 9 7 1 21 10 1 6 5 5 13 14 18 28 18 15 13 35 Power 50 | 1 1 1 . . . . 5 1 1 . 1 . . . . 1 . 1 . 1 . . 3 1 . 1 1 . 3 1 1 6 4 4 1 10 Engine 8 | 1 1 1 . . . . 3 1 1 . . . . . . . . . . . . . . . . . . . . . . . . . . . Core 5 | . . . . . . . 2 . . . . . . . . . . . . . . . 2 . . . . . 1 . . . . . . . Reactor 37 | . . . . . . . . . . . 1 . . . . 1 . 1 . 1 . . 1 1 . 1 1 . 2 1 1 6 4 4 1 10 Propulsion 67 | 2 2 . 7 . . . 6 4 4 2 . 1 2 . . 1 1 . . 2 2 . 3 2 . . 1 1 2 1 4 7 4 1 2 3 Treads 65 | 2 . . 7 . . . 6 4 4 2 . 1 2 . . 1 1 . . 2 2 . 3 2 . . 1 1 2 1 4 7 4 1 2 3 Leg . | . . . . . . . . . . . . . . . . . . . . . . . . . . . . . . . . . . . . . Wheel 2 | . 2 . . . . . . . . . . . . . . . . . . . . . . . . . . . . . . . . . . . Hover . | . . . . . . . . . . . . . . . . . . . . . . . . . . . . . . . . . . . . . Flight . | . . . . . . . . . . . . . . . . . . . . . . . . . . . . . . . . . . . . . Utility 149 | 1 4 2 1 1 . . 6 7 4 . 5 2 1 1 5 4 1 3 2 3 4 1 10 5 1 3 3 2 7 5 7 10 5 9 9 15 Device 72 | . 1 . . 1 . . 2 4 2 . 1 2 . 1 . 1 1 3 1 1 . . 1 3 . 3 1 2 3 4 3 6 4 6 3 12 Storage 9 | 1 2 . 1 . . . 1 . . . . . . . . . . . . 1 . . . . . . . . . . . . . . 2 1 Processor 17 | . . . . . . . 1 . 1 . . . . . 1 . . . . . . . 2 1 . . . . 2 . 1 1 1 2 2 2 Hackware 26 | . . . . . . . . . 1 . 3 . . . 2 . . . 1 1 2 1 3 1 1 . 1 . 2 1 1 3 . . 2 . Protection 24 | . 1 2 . . . . 2 3 . . 1 . 1 . 2 3 . . . . 2 . 4 . . . 1 . . . 2 . . . . . Artifact 1 | . . . . . . . . . . . . . . . . . . . . . . . . . . . . . . . . . . 1 . . Weapon 89 | . 2 1 6 . . . 6 4 3 . 4 4 2 . 2 3 . 3 1 3 1 . 5 2 . 2 . 2 1 7 6 5 5 1 1 7 Energy Gun 6 | . . . 1 . . . . . . . . . . . . . . . . . . . 1 . . . . . . 1 1 . . . 1 1 Energy Cannon 13 | . . . . . . . 2 1 . . . . . . . . . 2 . 1 . . . 1 . . . . . 1 3 . . . . 2 Ballistic Gun 52 | . 2 . 4 . . . 2 3 3 . 3 2 . . 2 3 . 1 1 . 1 . 4 1 . 1 . 2 1 5 1 4 4 . . 2 Ballistic Cannon 4 | . . . . . . . . . . . . 1 1 . . . . . . . . . . . . . . . . . . . . . . 2 Launcher 8 | . . 1 1 . . . 1 . . . . 1 . . . . . . . 1 . . . . . 1 . . . . . 1 . 1 . . Special Weapon 4 | . . . . . . . . . . . 1 . 1 . . . . . . 1 . . . . . . . . . . 1 . . . . . Impact Weapon 2 | . . . . . . . 1 . . . . . . . . . . . . . . . . . . . . . . . . . 1 . . . Slashing Weapon . | . . . . . . . . . . . . . . . . . . . . . . . . . . . . . . . . . . . . . Piercing Weapon . | . . . . . . . . . . . . . . . . . . . . . . . . . . . . . . . . . . . . . Special Melee Weapon . | . . . . . . . . . . . . . . . . . . . . . . . . . . . . . . . . . . . . . Unidentified Prototypes 51 | . . . 2 . . . 3 . . . . . . . . 4 . 4 . . . . 3 1 . . . 1 . 1 7 1 7 8 1 8 Corrupted Parts 1 | . . . . . . . . . . . . . . . . . . . . . . . . . . . . . . . . . . . . 1 System Corruption 1 | . . . . . . . . . . . . . . . . . . . . . . . . . . . . . . . . . . . . 1 Parts Lost 63 | . . . 3 2 . 1 5 9 7 . 2 . . . . . . . . 2 2 . 8 . . . . . 1 1 . 6 3 1 2 8 Power 12 | . . . 1 . . . 2 . 1 . . . . . . . . . . . . . 1 . . . . . 1 . . 1 2 . . 3 Propulsion 12 | . . . . . . 1 2 3 3 . 1 . . . . . . . . . . . 2 . . . . . . . . . . . . . Utility 23 | . . . 1 1 . . 1 3 2 . 1 . . . . . . . . 1 . . 2 . . . . . . 1 . 4 1 . 1 4 Weapon 16 | . . . 1 1 . . . 3 1 . . . . . . . . . . 1 2 . 3 . . . . . . . . 1 . 1 1 1 Highest Loss Streak 5 | . . . 1 2 . 1 1 5 3 . 1 . . . . . . . . 1 1 . 3 . . . . . 1 1 . 3 1 1 1 4 To Critical Strikes 2 | . . . . . . . . . . . . . . . . . . . . . . . 1 . . . . . . . . . . . 1 . Average Backups 21 | 3 9 19 19 19 18 19 23 23 23 25 24 24 24 24 24 22 21 22 21 19 21 21 22 22 22 22 21 21 21 21 21 20 20 20 21 19 Power 1 | . 1 2 1 1 1 1 2 2 1 2 2 2 2 2 2 1 2 2 2 1 1 1 1 1 1 1 1 1 . 1 1 1 1 1 2 2 Propulsion 3 | . 2 2 5 6 7 6 5 5 4 4 4 5 4 4 4 3 3 3 3 3 3 3 1 2 3 3 3 3 3 3 3 3 2 3 2 2 Utility 7 | . 1 6 5 4 4 4 6 7 9 9 8 8 8 8 7 7 6 7 7 7 9 10 9 9 8 8 7 8 9 7 7 6 8 10 10 8 Weapon 6 | 1 4 7 6 5 5 5 8 7 6 7 7 7 8 8 9 8 7 8 7 5 6 5 7 8 8 7 7 7 7 8 7 7 6 4 4 6 Tool/Special . | . . . . . . . . . . . . . . . . . . . . . . . . . . . . . . . . . . . . . Unused Backups 106 | . 3 5 5 1 . . 7 2 7 3 4 1 2 . . 7 . 1 . 4 3 . 5 . . 2 3 . . 1 3 9 7 5 1 15 Power 17 | . . 3 . . . . . 2 1 1 . . . . . 2 . . . . . . . . . . . . . . 1 . 3 1 . 3 Propulsion 19 | . 2 . . . . . 1 . 1 . . . 1 . . 3 . . . . . . . . . 1 2 . . . . 6 . 1 . 1 Utility 33 | . . . 3 1 . . 2 . 2 1 4 1 . . . 1 . 1 . 2 3 . 2 . . . 1 . . . . . 2 1 1 5 Weapon 29 | . 1 2 2 . . . 4 . 3 1 . . 1 . . 1 . . . . . . 2 . . 1 . . . 1 1 2 1 1 . 5 Tool/Special 8 | . . . . . . . . . . . . . . . . . . . . 2 . . 1 . . . . . . . 1 1 1 1 . 1 Average Slot Usage (%) 87 | . 93 100 99 100 100 99 97 91 98 100 99 96 97 86 85 86 86 85 84 83 87 88 85 83 84 84 83 84 83 89 88 77 76 74 75 76 Engine 2 | . 14 14 10 11 11 11 3 7 7 7 6 . . . . . . . . . . . . . . . . . . . . . . . . . Reactor 6 | . . . . . . . . . . . . 6 6 6 6 6 6 6 6 9 11 11 7 7 10 10 10 10 9 4 6 12 12 10 11 12 Treads 18 | . 21 . 28 33 33 32 26 25 29 30 29 26 23 13 13 13 13 13 13 15 17 17 17 15 15 15 15 15 16 19 19 12 13 12 11 11 Device 11 | . 7 . . 8 . . 12 10 14 7 6 9 13 13 9 6 6 12 8 14 11 11 9 5 5 6 10 10 11 18 16 16 15 12 13 21 Storage 6 | . 14 14 11 11 11 11 9 7 7 7 7 6 6 6 6 6 6 6 6 5 5 5 5 5 5 5 5 5 5 4 4 4 4 4 3 3 Processor 7 | . . . . . . . 6 6 3 7 7 6 6 6 7 13 13 13 13 6 5 5 5 14 15 15 11 10 10 9 9 4 5 12 10 7 Hackware 3 | . . . . . . . . . 1 7 7 6 6 6 7 6 6 . 4 . 3 5 2 4 9 8 5 5 5 8 9 3 3 . 4 . Protection 5 | . 2 14 10 2 11 11 6 8 9 7 6 6 6 6 6 6 5 6 6 5 7 5 8 5 . . 3 4 3 . . 4 4 4 3 3 Energy Gun 1 | . . . . 11 11 11 . . . . . . . . . . . . . . . . . . . . . . . . . 2 3 3 3 3 Energy Cannon 1 | . . . . . . . 1 1 5 7 7 3 . . . . . . . 3 . 1 . 3 . . . 1 . . 2 . . . . 2 Ballistic Gun 18 | . 26 20 31 22 22 22 24 20 16 15 13 20 20 25 22 25 26 24 23 18 20 17 20 15 16 19 20 18 19 18 15 13 12 12 10 7 Peak Build Rating 265 | 4 13 18 22 17 17 17 32 46 52 54 55 68 93 94 91 110 111 121 118 129 125 117 127 133 136 138 140 141 142 147 182 210 227 240 259 265 Average Rating 120 | 3 9 17 19 16 17 16 27 35 46 51 50 64 70 92 88 101 109 114 115 120 118 115 113 128 132 131 135 136 133 143 160 199 210 226 237 251 On Entrance 98 | . 4 13 17 16 17 17 17 32 46 52 50 54 66 89 89 88 107 111 118 118 122 117 117 127 131 133 132 137 139 131 146 179 210 221 239 254 Naked Turns . | . . . . . . . . . . . . . . . . . . . . . . . . . . . . . . . . . . . . . Heaviest Build 247 | 8 54 65 68 57 57 57 106 119 121 119 122 134 133 127 129 134 134 140 140 170 172 165 171 148 141 154 159 163 160 162 179 216 213 223 228 247 Greatest Support 255 | 40 40 24 60 60 60 60 60 83 83 82 82 82 130 130 130 130 150 150 150 173 180 180 180 220 220 220 220 220 220 194 207 235 255 240 250 250 Greatest Overweight (x) 5 | . 2 5 2 . . . 2 1 1 1 1 1 1 . . 1 1 . . . . . 1 . . . 1 . . . 1 1 1 . . 1 Average Overweight (x) . | . . 2 1 . . . 1 1 1 1 1 1 . . . . . . . . . . . . . . . . . . . . . . . . Largest Inventory Capacity 25 | 8 20 20 20 20 20 20 25 25 25 25 25 25 25 25 25 25 25 25 25 25 25 25 25 25 25 25 25 25 25 25 25 25 25 25 25 25 Average Capacity 24 | 7 11 20 20 20 20 20 24 25 25 25 25 25 25 25 25 25 25 25 25 25 25 25 25 25 25 25 25 25 25 25 25 25 25 25 25 25 Most Carried 25 | 6 19 20 20 20 18 20 25 25 25 25 25 25 25 25 25 25 25 25 25 25 25 25 25 25 25 25 25 25 25 25 25 25 25 25 25 25 Average Carried 23 | 3 9 19 19 19 18 19 23 23 23 24 24 24 24 25 24 24 24 24 24 22 24 24 24 24 24 24 24 24 24 24 24 24 24 24 24 24 Final Capacity 25 | 8 20 20 20 20 20 20 25 25 25 25 25 25 25 25 25 25 25 25 25 25 25 25 25 25 25 25 25 25 25 25 25 25 25 25 25 25 Final Carried 25 | 6 19 20 20 18 18 20 25 20 25 25 25 25 25 25 25 24 25 25 25 23 25 25 25 25 25 25 25 25 25 25 25 25 25 25 25 24 Class Distribution -------------------- 43% | Scavenger-Tank 11% | Scavenger-Gunner 7% | Bothacker-Gunner 6% | Generator-Tank 5% | Commander-Tank 5% | Tank 4% | Mutant 4% | Bothacker-Tank 3% | Generator-Skirmisher 3% | Gunner Dominant Class ---------------- Mutant | -10/Materials Mutant | -10/Mines Tank | -9/Materials Scavenger-Gunner | -9/Mines Scavenger-Tank | -9/Exiles Scavenger-Tank | -8/Mines Scavenger-Gunner | -8/Materials Gunner | -7/Factory Tank | -7/Garrison Bothacker-Gunner | -7/Factory Bothacker-Gunner | -7/Garrison Bothacker-Gunner | -6/Factory Bothacker-Gunner | -6/Garrison Bothacker-Tank | -6/Factory Bothacker-Tank | -6/Extension Commander-Tank | -6/Cetus Commander-Tank | -6/Archives Commander-Tank | -6/Hub_04(d) Scavenger-Tank | -6/Garrison Scavenger-Tank | -5/Factory Scavenger-Tank | -5/Garrison Scavenger-Tank | -5/Factory Scavenger-Tank | -5/Garrison Scavenger-Tank | -4/Factory Scavenger-Tank | -4/Waste Scavenger-Gunner | -4/Factory Scavenger-Tank | -4/Garrison Scavenger-Tank | -4/Factory Scavenger-Tank | -4/Garrison Scavenger-Tank | -3/Research Scavenger-Tank | -3/Testing Scavenger-Tank | -2/Research Scavenger-Tank | -2/Quarantine Generator-Tank | -2/Section 7 Generator-Skirmisher | -1/Access Generator-Tank | -1/Command Resources | -11 -10 -10 -9 -9 -9 -8 -8 -7 -7 -7 -7 -6 -6 -6 -6 -6 -6 -6 -6 -5 -5 -5 -5 -4 -4 -4 -4 -4 -4 -3 -3 -2 -2 -2 -1 -1 ----------- Run | Yrd Mat Min Mat Min Exi Min Mat Fac Gar Fac Gar Fac Gar Fac Ext Cet Arc Hub Gar Fac Gar Fac Gar Fac Was Fac Gar Fac Gar Res Tes Res Qua Sec Acc Com Matter Collected 30159 | 200 507 248 696 459 . 203 826 1043 806 . 847 . 265 . 1064 496 235 348 951 293 1321 101 1651 266 310 610 906 498 1581 923 1478 3738 1788 2646 804 2051 Remotely 7232 | . . . . . . . . 470 . . 350 . . . 166 114 . . 128 . 302 . 389 . . 331 . 170 693 100 446 958 955 908 108 644 Salvage Created 38602 | . 654 9 1051 322 . 382 1180 1094 765 . 552 50 15 . 858 637 150 448 1125 368 691 139 1615 266 362 863 1063 330 1488 216 1940 7376 3555 3878 629 4531 Parts 1938 | . 41 . 80 19 . 33 64 73 45 . 32 1 . . 41 44 10 14 47 17 38 5 67 9 5 36 50 15 80 12 119 382 164 201 31 163 Haulers Intercepted 10 | . 1 . 4 . . . 3 . . . . . . . . . . . . . . . . . . . . . . 1 . 1 . . . . Recyclers Shooed 12 | . . . . . . . . 3 . . . . . . 2 . . . . . . . . 1 . 2 . . . . 1 1 . . . 2 Parts Field Recycled . | . . . . . . . . . . . . . . . . . . . . . . . . . . . . . . . . . . . . . Retrieved Matter . | . . . . . . . . . . . . . . . . . . . . . . . . . . . . . . . . . . . . . Parts Self-Destructed . | . . . . . . . . . . . . . . . . . . . . . . . . . . . . . . . . . . . . . Prevented . | . . . . . . . . . . . . . . . . . . . . . . . . . . . . . . . . . . . . . Kills | -11 -10 -10 -9 -9 -9 -8 -8 -7 -7 -7 -7 -6 -6 -6 -6 -6 -6 -6 -6 -5 -5 -5 -5 -4 -4 -4 -4 -4 -4 -3 -3 -2 -2 -2 -1 -1 ------- Run | Yrd Mat Min Mat Min Exi Min Mat Fac Gar Fac Gar Fac Gar Fac Ext Cet Arc Hub Gar Fac Gar Fac Gar Fac Was Fac Gar Fac Gar Res Tes Res Qua Sec Acc Com Combat Hostiles Destroyed 560 | . 16 4 21 9 . 11 27 22 26 . 19 1 . . 9 5 1 4 20 7 20 2 29 2 1 8 16 2 27 3 20 79 41 49 6 53 Guns 391 | . 16 . 13 7 . 6 16 16 10 . 6 1 . . 9 5 1 2 17 2 10 . 27 2 1 8 16 1 23 3 12 52 29 37 6 37 Cannons 33 | . . . . . . . 1 4 . . 5 . . . . . . 1 2 . . 1 . . . . . 1 1 . 3 2 . . . 12 AOE 84 | . . 4 8 2 . 5 10 2 16 . 8 . . . . . . . . 5 10 . . . . . . . 2 . . 5 1 6 . . Classes Destroyed 27 | . 5 1 4 . . 2 3 3 . . . . . . . . . . . . 1 . 3 . 1 . . . 2 . . . 1 . . 1 Worker 20 | . . . . . . 1 1 1 . . . . . . . . . 1 . . . . . . . 1 . 1 . . 1 7 . 1 1 4 Builder 13 | . . . 2 . . . 2 . . . . . . . 1 . . . . . . . . . . . . 1 . 1 1 2 . 3 . . Tunneler 6 | . 1 . . . . 2 1 . . . . . . . . . . . . 1 . . . . . . . . . . . 1 . . . . Hauler 10 | . 1 . 4 . . . 3 . . . . . . . . . . . . . . . . . . . . . . 1 . 1 . . . . Recycler 25 | . . . 3 . . 1 . 2 . . . . . . 1 . . 1 . 1 . . . 1 . 2 . . . . 2 4 . . 1 6 Mechanic 3 | . . . . . . . 1 . . . . . . . . . . . . . . . . . . . . . . . . . 1 . . 1 Operator 10 | . . . 1 . . . . . . . . . . . . . 2 . . 1 . . . . . . . . . . 2 2 . 1 . 1 Watcher 22 | . 1 . 3 . . . 1 . . . . . . . 2 1 . 1 . . . . . . . . . 3 . . 2 4 . 1 1 2 Swarmer 134 | . 3 . 10 3 . 8 7 4 16 . 15 . . . . . . . 4 5 13 . 12 . . . 2 . 5 3 . 9 . 5 . 10 Saboteur 3 | . . . . . . . . . . . . . . . . . . . . . . . . . . . . . 2 . . . 1 . . . Grunt 159 | . 13 . 5 6 . 2 9 5 7 . 4 . . . 4 . . 1 11 . 5 . 5 . . 3 6 . 10 . 3 30 12 10 . 8 Brawler 8 | . . . . . . . 2 1 . . . . . . . . . . . . . . 2 . . . . . . . . 2 1 . . . Duelist 12 | . . . . . . 1 2 . . . 1 . . . 1 . . . . . . . . . . . 1 . . . . 4 2 . . . Protector 3 | . . . . . . . 1 . . . . . . . . . . . . . . . . . . . . . . . . . 1 . . 1 Sentry 52 | . . . 6 . . . 6 1 2 . . . . . 4 . 1 . 2 1 2 . 3 2 . 2 1 1 3 . . 6 3 4 . 2 Demolisher 1 | . . . . . . . . . . . . . . . . . . . . . . . 1 . . . . . . . . . . . . . Specialist 8 | . . . . . . . . 2 1 . . . . . . . . . . . . . . . . . . . . . . . 3 . . 2 Hunter 51 | . . . . . . . . 5 . . . . . . . . . 2 3 . . 2 2 . . . 2 . 2 . 6 3 7 13 2 2 Programmer 87 | . . . . . . . . 4 1 . . 1 . . . . . . 1 1 . . 2 . . 2 3 . 4 . 11 24 10 13 4 6 Heavy 2 | . . . . . . . . . . . . . . . . . . . . . . . . . . . . . 1 . . . . . . 1 Behemoth 6 | . . . . . . . . . . . . . . . . . . . . . 1 . . . . 1 1 1 . . . 1 . 1 . . Compactor 1 | . . . . . . . . . . . . . . . . . . . . . . . . . 1 . . . . . . . . . . . Cetus Guard 5 | . . . . . . . . . . . . . . . . 5 . . . . . . . . . . . . . . . . . . . . S7 Guard 1 | . . . . . . . . . . . . . . . . . . . . . . . . . . . . . . . . . . 1 . . Enhanced Q-Series 21 | . . . . . . . . . . . . . . . . . . . . . . . . . . . . . . . . . . . . 21 Lightning 1 | . . . . . . . . . . . . . . . . . . 1 . . . . . . . . . . . . . . . . . . Striker 2 | . . . . . . . . . . . . . . . . . . . . . . . 2 . . . . . . . . . . . . . Executioner 4 | . . . . . . . . . . . . . . . . . . . . . . . 2 . . . . . . . . . . 2 . . Fortress 1 | . . . . . . . . . . . . . . . . . . . . . . . . . . . . . . . . . 1 . . . Protovariant X 1 | . . . . . . . . . . . . . . . . . . . . . . . . . . . . . . . 1 . . . . . Assembled 4 | . . 4 . . . . . . . . . . . . . . . . . . . . . . . . . . . . . . . . . . Thug 1 | . . . . . . . . . . . . . . . . 1 . . . . . . . . . . . . . . . . . . . . Butcher 1 | . . . . . . . . . . . . . . . . 1 . . . . . . . . . . . . . . . . . . . . Martyr 2 | . . . . . . . . . . . . . . . . . . . . . . . . . 2 . . . . . . . . . . . Best Kill Streak 12 | . 3 3 4 6 . 5 7 6 12 . 4 1 . . 4 4 1 2 7 5 9 2 9 1 1 4 3 4 8 3 4 8 5 7 4 8 Combat Bots Only 12 | . 3 3 4 6 . 4 5 5 12 . 4 1 . . 4 3 1 2 7 5 9 2 9 1 1 3 3 1 8 3 3 8 5 7 2 8 Max Kills in Single Turn 7 | . 2 2 3 2 . 3 4 2 4 . 4 1 . . 2 3 1 1 2 2 7 1 2 1 1 1 1 2 2 2 2 4 2 3 1 3 Gunslinging 1 | . 1 . . 1 . . . . . . . . . . . . . . 1 . . . 1 . . . . . 1 1 . 1 1 1 . 1 Exploded 7 | . . 2 2 2 . 3 4 2 4 . 4 . . . . . . . . 2 7 . . . . . . . 1 . . 1 1 3 . . Melee . | . . . . . . . . . . . . . . . . . . . . . . . . . . . . . . . . . . . . . Uniques/NPCs Destroyed 2 | . . . . . . . . . . . . . . . . 1 . . . . . . . . . . . . . . . . . . . 1 A7 (-6/Cetus) MAIN.C Shell (-1/Command) Combat | -11 -10 -10 -9 -9 -9 -8 -8 -7 -7 -7 -7 -6 -6 -6 -6 -6 -6 -6 -6 -5 -5 -5 -5 -4 -4 -4 -4 -4 -4 -3 -3 -2 -2 -2 -1 -1 -------- Run | Yrd Mat Min Mat Min Exi Min Mat Fac Gar Fac Gar Fac Gar Fac Ext Cet Arc Hub Gar Fac Gar Fac Gar Fac Was Fac Gar Fac Gar Res Tes Res Qua Sec Acc Com Hostile Shots Fired 3453 | . 45 8 79 18 . 35 75 253 106 . 93 16 . . 70 3 . 15 103 27 103 33 172 8 . 21 103 26 153 16 134 434 296 432 67 509 Missed 962 | . 15 . 19 7 . 13 25 75 38 . 29 4 . . 26 . . 2 35 9 30 5 35 1 . 12 28 8 39 3 47 113 79 119 18 128 Hits 2491 | . 30 8 60 11 . 22 50 178 68 . 64 12 . . 44 3 . 13 68 18 73 28 137 7 . 9 75 18 114 13 87 321 217 313 49 381 Melee 45 | . . . . . . 3 . 4 . . . . . . 1 . . . . . . . 6 . . . . . 3 . . 6 . . . 22 Projectile 2446 | . 30 8 60 11 . 19 50 174 68 . 64 12 . . 43 3 . 13 68 18 73 28 131 7 . 9 75 18 111 13 87 315 217 313 49 359 AOE 11 | . . . . . . . . . . . . . . . . . . . . . . . 7 . . . . . . . . . . . . 4 Critical Strikes 125 | . . . 2 . . 2 4 7 2 . 1 . . . 1 . . 1 2 2 2 . 5 . . . 8 2 9 . 6 21 10 13 2 23 Actively Blocked 28 | . . . . . . . . . . . . . . . . . . . . . . . . . . . . . . . . 4 1 . . 23 Part Disruptions 16 | . . 1 . . . . . . . . . . . . . . . . . . . . . . . 1 1 . . . 3 2 4 1 . 3 Damage Taken 35368 | . 338 116 700 212 . 319 691 2497 983 . 1068 215 . . 546 122 . 255 895 314 730 149 2167 166 37 112 1024 248 1259 342 614 4344 2327 4454 391 7733 Core 2635 | . 80 . 81 44 . 69 88 216 80 . 117 38 . . 30 . . 13 77 53 61 . 38 . 16 9 . 38 62 66 82 182 81 537 11 466 Absorbed by Shields 13791 | . . . . . . . 80 . . . . . . . 59 29 . . . 144 739 138 777 . . 68 514 189 547 281 320 2508 1429 2083 255 3631 Reduced by Siege Mode 923 | . . . . . . . . . . . . . . . . . . . . . . . 36 . . . 122 . 86 . . 100 35 11 . 533 Ignored by Resistances 8397 | . . . 90 . . . . . . . . . . . . . . . . 62 . . 223 . . 18 48 36 418 . 764 1685 1684 1376 497 1496 Regen/Repaired (Parts) 8013 | . . . . . . . . . . . . . . . . 111 22 . . . . . . . 60 5 . . . . 102 1540 941 2336 181 2715 Core Remaining (%) 74 | 100 . 68 . . . 51 84 . . . 41 . . . . . . . 81 . . . 84 . . . . . 89 . 88 . . 58 . 70 Volleys Fired 1779 | . 53 8 63 13 . 19 53 64 60 . 45 7 10 1 52 24 8 19 65 19 50 9 96 25 13 29 48 20 72 21 110 234 96 134 61 178 Largest 4 | . 2 2 3 3 . 3 3 3 3 . 3 4 1 4 4 4 4 4 4 4 4 1 4 4 4 4 4 4 4 4 4 4 4 4 4 4 Hottest 410 | . 46 46 91 91 . 91 114 130 130 . 146 131 44 131 129 136 138 138 140 195 140 94 182 204 134 136 136 206 141 221 226 190 188 188 200 410 Shots Fired 4765 | . 106 12 163 38 . 51 137 180 141 1 91 16 10 4 114 94 32 46 166 37 152 9 298 60 31 87 153 69 200 72 229 605 280 365 119 597 Gun 4108 | . 106 8 157 38 . 48 119 155 99 . 46 12 1 4 87 94 32 36 147 20 140 . 284 42 24 79 149 60 179 67 152 538 267 353 117 448 Cannon 457 | . . . . . . . 10 21 33 1 31 4 4 . . . . 10 15 10 . 7 10 18 . 3 . 9 4 5 74 37 . . 2 149 Launcher 109 | . . 4 6 . . 3 8 4 9 . 5 . . . . . . . . 5 4 . . . . . . . 6 . . 30 13 12 . . Special 91 | . . . . . . . . . . . 9 . 5 . 27 . . . 4 2 8 2 4 . 7 5 4 . 11 . 3 . . . . . Kinetic 3491 | . 106 8 150 25 . 32 118 155 99 . 46 16 5 4 87 94 32 41 147 20 140 . 278 42 24 79 149 60 179 67 152 417 186 234 59 240 Thermal 953 | . . . . . . . 10 21 33 1 31 . 5 . . . . . . 10 . . 6 18 . 3 . 9 . 5 51 133 81 119 60 357 Explosive 54 | . . 4 6 . . 3 8 4 9 . 5 . . . . . . . . 5 4 . . . . . . . 6 . . . . . . . Electromagnetic 181 | . . . 7 13 . 16 1 . . . . . . . . . . 5 15 . . 7 10 . . . . . 4 . 23 55 13 12 . . Robot Hit Streak 28 | . 13 3 14 4 . 12 16 13 10 1 11 8 4 3 25 15 13 16 15 8 23 5 14 16 20 21 22 21 28 11 20 18 23 14 11 21 Robot Miss Streak 7 | . 5 3 3 3 . 3 4 4 5 . 5 1 1 2 2 6 2 4 3 2 4 1 4 2 1 3 3 3 4 3 7 6 4 5 3 5 Penetration Max 2 | . . . . . . . . . . . . . . . 2 1 1 . 1 . 1 . 1 . . . 1 2 1 1 1 2 2 1 1 1 Secondary Targets 82 | . 1 . . 2 . 3 . 2 1 . . . . . 2 . . 1 4 . . . 10 . . 1 2 . 3 2 . 18 7 9 3 11 Max Gunslinging Chain 1 | . 1 . . 1 . 1 . 1 1 . . . . . 1 . . 1 1 . . . 1 . . 1 1 . 1 1 . 1 1 1 1 1 Shots Hit Robots 2798 | . 67 6 106 20 . 33 86 110 74 1 51 10 4 2 78 54 20 25 94 17 80 7 176 29 29 52 98 48 122 46 126 335 175 186 41 390 Core Hits 1426 | . 26 7 53 13 . 20 67 51 50 . 33 2 2 1 38 28 12 11 40 19 38 2 64 9 8 23 37 16 50 16 47 239 112 127 18 147 Critical Kills 80 | . . . 1 . . . 1 . . . 4 . . . 9 7 . 1 1 . . . 3 . 3 1 5 1 4 . 7 13 1 11 1 6 Critical Parts Destroyed 114 | . . . . . . . 1 . . . 2 3 . 1 12 7 5 1 9 . 4 . 7 2 . . 2 4 10 2 9 10 8 9 2 4 Critical Strikes 212 | . . . 1 . . . 2 . . . 6 3 . 1 22 16 5 2 12 . 5 . 12 2 3 2 7 5 14 4 16 24 9 23 3 13 Meltdown 4 | . . . . . . . . . . . . . . . . . . . . . . . . . . . . . . . . . . . . 4 Destroy 205 | . . . 1 . . . 2 . . . 6 3 . 1 22 16 5 2 11 . 5 . 12 2 3 2 7 5 14 4 16 24 9 23 3 7 Blast 2 | . . . . . . . . . . . . . . . . . . . . . . . . . . . . . . . . . . . . 2 Corrupt 1 | . . . . . . . . . . . . . . . . . . . 1 . . . . . . . . . . . . . . . . . Melee Attacks 11 | . . . . . . . 4 5 . . . . . . . . . . . . . . . . . . . . . . . . 2 . . . Kinetic 2 | . . . . . . . . . . . . . . . . . . . . . . . . . . . . . . . . . 2 . . . Impact 9 | . . . . . . . 4 5 . . . . . . . . . . . . . . . . . . . . . . . . . . . . Slashing . | . . . . . . . . . . . . . . . . . . . . . . . . . . . . . . . . . . . . . Piercing . | . . . . . . . . . . . . . . . . . . . . . . . . . . . . . . . . . . . . . Sneak Attacks 1 | . . . . . . . . 1 . . . . . . . . . . . . . . . . . . . . . . . . . . . . Combat Hostiles . | . . . . . . . . . . . . . . . . . . . . . . . . . . . . . . . . . . . . . Follow-up Attacks . | . . . . . . . . . . . . . . . . . . . . . . . . . . . . . . . . . . . . . Damage Inflicted 98095 | 1 998 328 2116 495 . 771 2703 2536 2473 25 1291 184 45 12 693 1175 558 624 2603 830 2723 256 4839 847 495 1356 2295 1419 3420 983 3652 13777 7442 8451 1581 24098 Guns 67897 | . 997 61 1541 315 . 465 1239 1631 1092 . 157 184 . 12 677 1175 558 373 2134 285 1924 . 4593 706 495 1352 2295 1241 3004 983 2750 9792 5788 6666 1581 11831 Cannons 15539 | . . . . . . . 64 402 407 25 439 . . . . . . 218 469 159 . 256 246 141 . . . 178 180 . 847 754 . . . 10754 Explosions 14210 | . . 240 575 164 . 278 1382 467 974 . 695 . . . . . . . . 338 799 . . . . . . . 234 . . 3214 1606 1780 . 1464 Melee 84 | . . . . . . . . 36 . . . . . . . . . . . . . . . . . . . . . . . . 48 . . . Ramming 320 | 1 1 27 . 16 . 28 18 . . . . . . . 16 . . 33 . 48 . . . . . 4 . . 2 . 55 17 . 5 . 49 Kinetic 53764 | . 997 61 1475 132 . 239 1219 1631 1092 . 157 184 . 12 677 1175 558 373 2134 285 1924 . 4520 706 495 1352 2295 1241 3004 983 2750 7250 3936 4699 1083 5125 Thermal 29440 | . . . 56 164 . 48 104 402 407 25 439 . 45 . . . . . . 159 . . 73 141 . . . 178 . . 162 2948 1994 2673 498 18924 Explosive 5838 | . . 240 519 . . 230 1342 467 974 . 695 . . . . . . . . 338 799 . . . . . . . 234 . . . . . . . Electromagnetic 8697 | . . . 66 183 . 226 20 . . . . . . . . . . 218 469 . . 256 246 . . . . . 180 . 685 3562 1512 1074 . . Impact 36 | . . . . . . . . 36 . . . . . . . . . . . . . . . . . . . . . . . . . . . . Slashing . | . . . . . . . . . . . . . . . . . . . . . . . . . . . . . . . . . . . . . Piercing . | . . . . . . . . . . . . . . . . . . . . . . . . . . . . . . . . . . . . . Highest Corruption 15 | . . . . . . . . 6 7 7 7 . . . 1 1 1 3 5 2 2 2 3 2 2 3 4 4 8 1 8 14 15 9 1 7 Average Corruption 5 | . . . . . . . . 2 6 7 7 . . . 1 1 1 3 4 1 2 2 2 2 2 2 3 4 6 1 6 10 9 8 1 1 Corruption Purged 4 | . . . . . . . . . . . . . . . . . 1 . . . . . . . . . . . . . . . . . . 3 Corruption Blocked . | . . . . . . . . . . . . . . . . . . . . . . . . . . . . . . . . . . . . . Effects 614 | . . . . . . . . 5 51 4 45 . . . 10 9 2 3 21 1 10 1 30 3 8 15 15 13 36 . 61 114 58 85 2 12 Message Errors 130 | . . . . . . . . . 11 1 11 . . . 2 3 1 1 4 . 3 . 4 . 1 4 3 1 7 . 15 26 14 15 1 2 Matter Fused 161 | . . . . . . . . 1 15 . 11 . . . 3 1 1 1 6 . 3 1 10 1 3 4 4 4 10 . 17 25 13 26 . 1 Heat Flow Errors 59 | . . . . . . . . . 7 . 5 . . . . 1 . . 4 . . . 3 . . 2 . 3 . . 9 8 4 11 . 2 Energy Discharges 65 | . . . . . . . . . 3 1 5 . . . 2 2 . . 2 . 1 . 2 . 1 1 5 1 5 . 4 16 4 6 . 4 Parts Rejected 5 | . . . . . . . . . . . 1 . . . . . . . . . . . . . . . . . 1 . 1 . . 2 . . Parts Fused 7 | . . . . . . . . . . . . . . . . 1 . . 2 . 1 . . . . . . . 1 . . 2 . . . . Data Loss (minor) 65 | . . . . . . . . 2 5 . 5 . . . 1 . . . 2 1 2 . 1 . 1 1 2 2 5 . 5 12 7 10 . 1 Data Loss (major) 37 | . . . . . . . . 1 3 1 4 . . . . . . . . . . . 4 1 2 1 . 1 3 . 5 4 5 . 1 1 Misfires 16 | . . . . . . . . . 2 1 . . . . . . . 1 . . . . 2 . . 1 . . 2 . 1 3 . 3 . . Alerts 16 | . . . . . . . . 1 1 . 3 . . . 1 1 . . . . . . . . . 1 . . . . 1 2 2 3 . . Misdirections 3 | . . . . . . . . . . . . . . . . . . . . . . . . . . . . . . . . 2 1 . . . Weapon Failures 50 | . . . . . . . . . 4 . . . . . 1 . . . 1 . . . 4 1 . . 1 1 2 . 3 14 8 9 . 1 Overload Shots . | . . . . . . . . . . . . . . . . . . . . . . . . . . . . . . . . . . . . . Overflow Damage 1091 | . . 15 2 39 . . 24 . 48 . 14 . . . . . . 5 . 10 . . . 8 . . . . 9 . 28 126 . 17 . 746 Projectiles 683 | . . . . . . . . . . . 5 . . . . . . . . 2 . . . 8 . . . . . . 7 15 . . . 646 Explosions 368 | . . 15 2 39 . . 24 . 48 . 9 . . . . . . . . 3 . . . . . . . . 9 . . 111 . 17 . 91 Melee 40 | . . . . . . . . . . . . . . . . . . 5 . 5 . . . . . . . . . . 21 . . . . 9 Knockbacks 3 | . . . . . . . 1 . . . . . . . . . . . . 1 . . . . . . . . . . . . . . . 1 Impact 3 | . . . . . . . 1 . . . . . . . . . . . . 1 . . . . . . . . . . . . . . . 1 Kinetic . | . . . . . . . . . . . . . . . . . . . . . . . . . . . . . . . . . . . . . Secondary . | . . . . . . . . . . . . . . . . . . . . . . . . . . . . . . . . . . . . . Self-Inflicted Damage 545 | . . 29 15 97 . 38 65 . 30 . 61 . . . . . . . . 4 . . . . . . . . . . . 60 46 100 . . Shots 38 | . . 2 1 2 . 1 2 . 1 . 2 . . . . . . . . 1 . . . . . . . . . . . 6 19 1 . . Rammed 26 | 1 1 5 . 1 . 1 2 1 . . . . . . 2 . . 2 . 4 . . . . . 1 . . 1 . 1 . . 2 . 1 Targets Rammed 30 | 1 1 5 . 1 . 3 2 1 . . . . . . 2 . . 2 . 4 . . . . . 1 . . 1 . 2 1 . 2 . 1 Kicked . | . . . . . . . . . . . . . . . . . . . . . . . . . . . . . . . . . . . . . Crushed 4 | . . . . . . 2 . . . . . . . . . . . . . . . . . . . . . . . . 1 1 . . . . Highest Temperature 375 | . 63 138 257 175 . 236 55 336 231 . 171 . . . 8 222 . . 250 48 16 . 290 132 66 165 347 232 56 72 226 274 217 375 358 355 Average Temperature 68 | . 15 55 76 60 . 93 13 101 39 . 44 . . . 6 122 . . 86 23 4 . 62 47 35 46 207 79 17 29 50 63 61 89 92 85 Received Heat Transfer 5796 | . 153 160 207 51 . 45 267 405 315 . 189 81 . . 146 9 . 9 216 18 153 . 149 18 . . 654 201 199 28 9 401 151 813 . 749 Effects 19 | . . . 3 . . . . . . . . . . . . . . . 1 . . . 3 . . . 7 . . . . 1 . . 2 2 Shutdowns 2 | . . . . . . . . . . . . . . . . . . . . . . . . . . . 1 . . . . . . . . 1 Energy Bleed 4 | . . . . . . . . . . . . . . . . . . . 1 . . . . . . . 1 . . . . . . . 1 1 Interference 12 | . . . 3 . . . . . . . . . . . . . . . . . . . 3 . . . 4 . . . . 1 . . 1 . Short Circuit 1 | . . . . . . . . . . . . . . . . . . . . . . . . . . . 1 . . . . . . . . . Siege Activations 12 | . . . . . . . . . . . . . . . . . . . . . . . 1 . . 1 1 . 1 . . 1 2 1 . 4 Total Turns 378 | . . . . . . . . . . . . . . . . . . . . . . . 38 . . 4 54 . 44 . . 36 61 41 . 100 Longest Duration 54 | . . . . . . . . . . . . . . . . . . . . . . . 38 . . 4 54 . 44 . . 36 47 41 . 52 Martial Activations . | . . . . . . . . . . . . . . . . . . . . . . . . . . . . . . . . . . . . . Shielding Activations . | . . . . . . . . . . . . . . . . . . . . . . . . . . . . . . . . . . . . . Robots Disrupted 1 | . . . . . . . . . . . . . . . . . . . . . . . . . . . . . . . . . 1 . . . Combat Hostiles 1 | . . . . . . . . . . . . . . . . . . . . . . . . . . . . . . . . . 1 . . . Robots Corrupted 51 | . . . . . . . . . . . . . . . . . . 2 1 1 . 1 2 . . . . . 1 . 6 20 10 6 . 1 Combat Hostiles 47 | . . . . . . . . . . . . . . . . . . 1 1 . . 1 2 . . . . . 1 . 5 20 10 6 . . Parts Fried 85 | . . . . . . . . . . . . . . . . . . 5 5 1 . 6 4 . . . . . 1 . 9 31 15 8 . . Impact Corruptions 5 | . . . . . . . . . . . . . . . . . . 1 . 1 . . . . . . . . . . 2 . . . . 1 Robots Melted 4 | . . . . . . . . . . . . . . . . . . . . . . . . . . . . . . . . . . . . 4 Combat Hostiles 4 | . . . . . . . . . . . . . . . . . . . . . . . . . . . . . . . . . . . . 4 Parts Melted 24 | . . . . . . . . 1 . . 3 . . . . . 2 . . 1 . . . . . . 1 . 1 1 . 3 2 3 . 6 Heat Transferred 20150 | . . . 100 100 . 100 161 700 800 50 824 . 148 . . . . . . 148 . . 111 148 . . . 185 . . 148 2570 1658 2276 407 9516 Parts Sabotaged 3 | . . . . . . . . . . . . . . . . . . . . . . . . . . . . . 3 . . . . . . . Parts Stolen . | . . . . . . . . . . . . . . . . . . . . . . . . . . . . . . . . . . . . . Parts Stripped 18 | . . . . . . . . . . . . . . . . . . . . . . . . . . . . . . . . . 18 . . . Power Chain Reactions 13 | . . . 1 2 . 1 1 . . . . . . . . . . . . . . . . . . . . . . . . 3 1 4 . . Alert | -11 -10 -10 -9 -9 -9 -8 -8 -7 -7 -7 -7 -6 -6 -6 -6 -6 -6 -6 -6 -5 -5 -5 -5 -4 -4 -4 -4 -4 -4 -3 -3 -2 -2 -2 -1 -1 ------- Run | Yrd Mat Min Mat Min Exi Min Mat Fac Gar Fac Gar Fac Gar Fac Ext Cet Arc Hub Gar Fac Gar Fac Gar Fac Was Fac Gar Fac Gar Res Tes Res Qua Sec Acc Com Maximum Alert Level 5 | . . . 1 . . . 1 1 4 3 4 2 3 2 2 1 . 1 4 3 4 2 5 3 1 . 2 1 3 2 1 4 4 4 3 3 Low Security (%) 37 | 100 100 100 78 100 . 100 70 70 . . . . . . 13 24 100 75 2 . . . . . 72 100 36 24 14 90 98 25 . . . 35 Level 1 13 | . . . 21 . . . 29 29 10 . . . 4 72 72 75 . 24 6 . . . . . 27 . 20 75 10 2 1 10 . 8 . 2 Level 2 23 | . . . . . . . . . 5 12 23 100 87 27 14 . . . 8 97 28 100 16 . . . 42 . 53 7 . 30 . 63 82 47 Level 3 18 | . . . . . . . . . 54 87 59 . 8 . . . . . 52 2 38 . 55 100 . . . . 21 . . 15 93 21 17 14 Level 4 6 | . . . . . . . . . 29 . 17 . . . . . . . 29 . 32 . 20 . . . . . . . . 18 6 6 . . Level 5 . | . . . . . . . . . . . . . . . . . . . . . . . 6 . . . . . . . . . . . . . High Security . | . . . . . . . . . . . . . . . . . . . . . . . . . . . . . . . . . . . . . Max Security . | . . . . . . . . . . . . . . . . . . . . . . . . . . . . . . . . . . . . . Peak Influence 1670 | . 184 19 252 132 . 162 384 328 1444 758 1247 654 788 418 656 344 196 284 1219 741 1277 669 1670 876 274 147 615 322 750 421 204 1404 1120 1295 774 755 Initial 876 | . . 19 . 92 . . . 150 221 758 488 654 354 413 168 344 55 11 151 639 518 669 443 876 274 . 98 322 144 421 6 106 787 613 774 420 Average 451 | . 86 1 114 37 . 45 125 145 931 728 928 575 547 376 317 233 122 123 883 606 879 634 1013 795 136 70 334 229 530 57 57 604 905 616 644 492 Influence Increases 21267 | . 552 33 691 240 . 292 835 601 1293 . 899 32 434 30 1192 377 251 742 1148 482 799 64 1367 131 6 592 607 139 696 149 668 2052 1043 1632 350 848 Destroy 0b10 Robot/C 10870 | . 320 . 420 180 . 220 520 440 740 . 520 20 . . 500 160 80 220 580 140 440 40 780 40 . 240 360 40 435 60 300 1185 600 735 90 465 Destroy 0b10 Robot/NC 520 | . 15 . 65 . . 20 50 15 . . . . . . 25 10 10 30 . 15 . . . 5 . 15 . 25 . 8 32 84 8 24 12 52 Destroy Leader 1642 | . 64 . 124 30 . 30 128 50 50 . 30 10 . . 46 . . 56 30 30 30 10 60 20 . 70 60 26 32 10 60 242 72 154 26 92 Allied During Kill 1629 | . . . . . . . . . 116 . 34 . . . 494 170 90 276 158 . 5 . 93 . . 155 9 . 26 3 . . . . . . Successful Hack 651 | . 16 . 18 . . . 11 14 26 . 14 . 14 . 14 . . 5 14 12 28 12 14 . . 39 21 . 11 38 52 109 48 77 44 . Select Force Hacks 120 | . 60 . 30 . . . 30 . . . . . . . . . . . . . . . . . . . . . . . . . . . . . Disable Machine 1281 | . 15 . . 15 . . 45 . 15 . 15 . . 30 90 15 60 30 90 105 45 . 30 30 . 30 15 30 60 12 132 36 60 216 24 36 Anti-Garrison Action 1638 | . . . . . . . . . 250 . 250 . 400 . . . . . 150 . 150 . 300 . . . 100 . 38 . . . . . . . Destroy Structure 2292 | . 2 33 19 15 . 22 51 22 81 . 36 2 20 . 8 22 11 110 36 180 101 2 75 36 6 28 42 18 82 18 80 240 171 402 142 179 Partial Spotted 24 | . . . . . . . . . . . . . . . . . . . . . . . . . . . . . . . . . . 12 12 . Lose Combat Pursuer 600 | . 60 . 15 . . . . 60 15 . . . . . 15 . . 15 90 . . . 15 . . 15 . . 12 . 12 156 84 12 . 24 Influence Decreases 20555 | . 502 83 453 420 58 292 504 616 165 746 350 773 152 475 919 854 358 557 146 960 263 708 330 1016 791 451 133 547 153 888 489 841 1353 1432 983 794 Entered New Map 8715 | . . 31 . 146 58 . . 181 95 686 210 593 152 375 175 272 84 21 66 580 223 608 190 794 511 . 43 293 63 329 5 84 614 478 517 238 Time Decay 8978 | . 352 52 423 254 . 282 464 345 . 60 . 180 . 100 574 342 214 276 . 350 . 100 . 222 260 281 . 254 . 257 484 697 559 644 446 506 Lost Part 582 | . . . 30 20 . 10 40 90 70 . 20 . . . . . . . . 20 20 . 80 . . . . . 10 2 . 60 30 10 20 50 Lost Ally 1230 | . . . . . . . . . . . 120 . . . 20 240 60 260 80 10 20 . 60 . 20 170 90 . 80 . . . . . . . Purge Threat 1050 | . 150 . . . . . . . . . . . . . 150 . . . . . . . . . . . . . . 300 . . 150 300 . . Squads Dispatched 83 | . 4 1 2 . . . 8 7 . . . 2 . 1 . . . 2 . 3 . . . 1 . 2 . 1 . 1 7 13 7 12 3 6 Investigation 12 | . 3 1 1 . . . 3 1 . . . . . 1 . . . . . . . . . . . . . . . . . 1 . . 1 . Extermination 30 | . . . . . . . . 1 . . . 1 . . . . . 1 . 1 . . . 1 . 2 . 1 . . 4 6 4 5 1 2 Reinforcement 21 | . 1 . 1 . . . 1 1 . . . . . . . . . 1 . . . . . . . . . . . 1 3 4 . 6 1 1 Assault 13 | . . . . . . . 2 . . . . . . . . . . . . 2 . . . . . . . . . . . 2 3 1 . 3 Garrison 7 | . . . . . . . 2 4 . . . 1 . . . . . . . . . . . . . . . . . . . . . . . . Intercept . | . . . . . . . . . . . . . . . . . . . . . . . . . . . . . . . . . . . . . Searches Triggered . | . . . . . . . . . . . . . . . . . . . . . . . . . . . . . . . . . . . . . Construction Impeded 3 | . . . . . . . . . . . . . . . . . . . . . . . . . . . . . . . . 1 . 2 . . Haulers Reinforced 2 | . . . . . . . . . . . . . . . . . . . . . . . . . . . . . . 1 . 1 . . . . Active Scanning Responses . | . . . . . . . . . . . . . . . . . . . . . . . . . . . . . . . . . . . . . Cargo Convoy Interrupts 1 | . . . . . . . . 1 . . . . . . . . . . . . . . . . . . . . . . . . . . . . Stealth | -11 -10 -10 -9 -9 -9 -8 -8 -7 -7 -7 -7 -6 -6 -6 -6 -6 -6 -6 -6 -5 -5 -5 -5 -4 -4 -4 -4 -4 -4 -3 -3 -2 -2 -2 -1 -1 --------- Run | Yrd Mat Min Mat Min Exi Min Mat Fac Gar Fac Gar Fac Gar Fac Ext Cet Arc Hub Gar Fac Gar Fac Gar Fac Was Fac Gar Fac Gar Res Tes Res Qua Sec Acc Com Distress Signals 50 | . 3 2 4 . . . 1 3 . . . . . . . 2 2 4 . . . . . . . 2 . 1 . 5 1 5 3 5 1 6 Communications Jammed 196 | . . . . . . . . . . . . . . . 1 189 . . . . . . . . . . . . . . . 1 . . 1 4 Distress Signals 193 | . . . . . . . . . . . . . . . 1 189 . . . . . . . . . . . . . . . 1 . . 1 1 Times Spotted 850 | . 25 7 31 9 . 11 35 36 36 . 36 3 . 1 26 9 8 10 27 10 34 3 40 3 5 12 20 7 35 8 37 98 52 66 7 103 Peak Tracking Total 11 | . 4 4 6 3 . 4 5 11 8 . 8 2 . 1 6 5 2 5 6 5 9 2 6 1 3 4 6 3 6 4 3 9 9 7 2 11 Tactical Retreats 34 | . 4 . 1 . . . . 3 1 . . . . . 1 . . 1 3 . . . 1 . . 1 . . 1 . 1 9 4 1 . 2 Traps | -11 -10 -10 -9 -9 -9 -8 -8 -7 -7 -7 -7 -6 -6 -6 -6 -6 -6 -6 -6 -5 -5 -5 -5 -4 -4 -4 -4 -4 -4 -3 -3 -2 -2 -2 -1 -1 ------- Run | Yrd Mat Min Mat Min Exi Min Mat Fac Gar Fac Gar Fac Gar Fac Ext Cet Arc Hub Gar Fac Gar Fac Gar Fac Was Fac Gar Fac Gar Res Tes Res Qua Sec Acc Com Traps Triggered 46 | . 1 . . . . . . 1 3 . 5 . 1 . 1 . . . . 2 2 . 1 2 . . 1 1 5 3 3 7 5 1 . 1 Indirectly 7 | . . . . . . . . . . . . . . . . . . . . . . . . . . . . . . . . 2 5 . . . Trap Hack Attempts . | . . . . . . . . . . . . . . . . . . . . . . . . . . . . . . . . . . . . . Triggered . | . . . . . . . . . . . . . . . . . . . . . . . . . . . . . . . . . . . . . Disarmed . | . . . . . . . . . . . . . . . . . . . . . . . . . . . . . . . . . . . . . Reprogrammed . | . . . . . . . . . . . . . . . . . . . . . . . . . . . . . . . . . . . . . Reused . | . . . . . . . . . . . . . . . . . . . . . . . . . . . . . . . . . . . . . Traps Extracted . | . . . . . . . . . . . . . . . . . . . . . . . . . . . . . . . . . . . . . Installed . | . . . . . . . . . . . . . . . . . . . . . . . . . . . . . . . . . . . . . Triggered . | . . . . . . . . . . . . . . . . . . . . . . . . . . . . . . . . . . . . . Machines | -11 -10 -10 -9 -9 -9 -8 -8 -7 -7 -7 -7 -6 -6 -6 -6 -6 -6 -6 -6 -5 -5 -5 -5 -4 -4 -4 -4 -4 -4 -3 -3 -2 -2 -2 -1 -1 ---------- Run | Yrd Mat Min Mat Min Exi Min Mat Fac Gar Fac Gar Fac Gar Fac Ext Cet Arc Hub Gar Fac Gar Fac Gar Fac Was Fac Gar Fac Gar Res Tes Res Qua Sec Acc Com Machines Disabled 118 | . 1 . . 1 . . 3 . 3 . 3 . . 2 6 2 4 2 9 7 6 . 7 2 . 2 3 2 6 1 13 3 5 20 2 3 Max in Single Turn 3 | . 1 . . 1 . . 1 . 1 . 1 . . 1 1 1 1 1 1 3 1 . 2 1 . 1 1 1 1 1 1 1 1 2 1 1 Garrison Access 6 | . . . . . . . 1 . . . . . . . . . . . . 1 . . . . . . . . . 1 1 2 . . . . Garrison Relay 18 | . . . . . . . . . 3 . 2 . . . . . . . 3 . 3 . 4 . . . 2 . 1 . . . . . . . Network Hub 2 | . . . . . . . . . . . . . . . . . . 2 . . . . . . . . . . . . . . . . . . Machines Repaired . | . . . . . . . . . . . . . . . . . . . . . . . . . . . . . . . . . . . . . Machines Dismantled 9 | . . . . . . . . . . . . . . 1 6 1 . 1 . . . . . . . . . . . . . . . . . . Machines Sabotaged . | . . . . . . . . . . . . . . . . . . . . . . . . . . . . . . . . . . . . . Overloaded Fab Kills . | . . . . . . . . . . . . . . . . . . . . . . . . . . . . . . . . . . . . . Hacking | -11 -10 -10 -9 -9 -9 -8 -8 -7 -7 -7 -7 -6 -6 -6 -6 -6 -6 -6 -6 -5 -5 -5 -5 -4 -4 -4 -4 -4 -4 -3 -3 -2 -2 -2 -1 -1 --------- Run | Yrd Mat Min Mat Min Exi Min Mat Fac Gar Fac Gar Fac Gar Fac Ext Cet Arc Hub Gar Fac Gar Fac Gar Fac Was Fac Gar Fac Gar Res Tes Res Qua Sec Acc Com Machines Accessed 124 | . 7 1 9 1 1 . 9 3 3 1 2 2 2 2 7 1 . 2 3 3 2 3 1 1 . 4 3 3 2 4 8 14 8 7 5 . Terminals 96 | . 5 . 8 1 . . 8 2 3 . 2 1 2 2 7 1 . 1 3 1 2 1 1 1 . 3 3 . 2 3 7 10 5 6 5 . Fabricators 3 | . . . . . . . . . . . . . . . . . . . . . . . . . . . . 1 . . . 2 . . . . Repair Stations 2 | . . . . . . . . . . . . . . . . . . . . 1 . . . . . . . . . . . . 1 . . . Recycling Units 6 | . 2 . 1 . . . 1 . . . . . . . . . . . . . . 1 . . . . . 1 . . . . . . . . Scanalyzers 3 | . . . . . . . . . . . . . . . . . . . . . . . . . . . . . . . . . 2 1 . . Garrison Access 12 | . . . . . . . . 1 . 1 . 1 . . . . . 1 . 1 . 1 . . . 1 . 1 . 1 1 2 . . . . Total Hacks 342 | . 20 1 22 2 1 . 21 4 6 1 3 2 4 5 12 2 . 4 8 8 5 8 4 1 . 20 6 7 7 19 16 49 27 33 14 . Successful 149 | . 13 1 14 2 1 . 5 3 3 1 1 1 1 . 5 . . 2 2 2 2 4 1 . . 9 2 3 1 10 8 21 14 13 4 . Failed 193 | . 7 . 8 . . . 16 1 3 . 2 1 3 5 7 2 . 2 6 6 3 4 3 1 . 11 4 4 6 9 8 28 13 20 10 . Catastrophic 39 | . 2 . . . . . 1 1 1 . 1 1 . . 2 1 . . 3 2 2 1 . 1 . 1 1 . . 2 . 6 4 6 . . Database Lockouts . | . . . . . . . . . . . . . . . . . . . . . . . . . . . . . . . . . . . . . Manual 153 | . 17 . 19 . . . 11 1 . . . 1 . . 2 1 . 3 . 4 . 1 . . . 17 . . . 15 4 27 11 16 3 . Terminals 283 | . 14 . 19 2 . . 19 3 6 . 3 1 4 5 12 2 . 3 8 4 5 4 4 1 . 19 6 . 7 17 14 40 15 32 14 . Fabricators 9 | . . . . . . . . . . . . . . . . . . . . . . . . . . . . 4 . . . 5 . . . . Repair Stations 8 | . . . . . . . . . . . . . . . . . . . . 3 . . . . . . . . . . . . 5 . . . Recycling Units 16 | . 6 . 3 . . . 2 . . . . . . . . . . . . . . 3 . . . . . 2 . . . . . . . . Scanalyzers 8 | . . . . . . . . . . . . . . . . . . . . . . . . . . . . . . . . . 7 1 . . Garrison Access 16 | . . . . . . . . 1 . 1 . 1 . . . . . 1 . 1 . 1 . . . 1 . 1 . 2 2 4 . . . . Terminal Hacks 76 | . 3 1 3 2 1 . 2 1 3 . 1 . 1 . 5 . . . 2 . 2 1 1 . . 4 2 . 1 4 6 11 5 10 4 . Record 6 | . . . . . 1 . . . . . . . . . . . . . . . . . . . . . . . . . . 5 . . . . Part Schematic 1 | . 1 . . . . . . . . . . . . . . . . . . . . . . . . . . . . . . . . . . . Prototype ID Bank 2 | . . . . . . . . . . . . . . . . . . . . . . . . . . . . . . . 1 . . 1 . . Open Door 10 | . . 1 . . . . . . 1 . . . . . 4 . . . . . . . . . . . 1 . . . 1 . . 1 1 . Level Access Points 2 | . . . . . . . . . . . . . . . . . . . . . . . . . . . . . . . . 1 . 1 . . Branch Access Points 3 | . . . 1 . . . . . . . . . . . . . . . . . . . . . . . . . . 1 . 1 . . . . Emergency Access Points 9 | . . . . . . . . . 1 . 1 . 1 . . . . . . . 1 . 1 . . . 1 . 1 . 1 . . 1 . . Terminal Index 6 | . . . . . . . . . . . . . . . . . . . . . . 1 . . . . . . . 1 1 . 1 1 1 . Alert Level 2 | . . . 1 . . . . 1 . . . . . . . . . . . . . . . . . . . . . . . . . . . . Unreport Threat 8 | . 1 . . . . . 1 . . . . . . . 1 . . . . . . . . . . . . . . 2 . . 1 2 . . Dispatch Records 1 | . . . . 1 . . . . . . . . . . . . . . . . . . . . . . . . . . . . . . . . Maintenance Status 3 | . . . . . . . . . . . . . . . . . . . . . . . . . . 2 . . . . . . . . 1 . Patrol Status 1 | . . . . . . . . . . . . . . . . . . . . . . . . . . . . . . . . . . 1 . . Recall Reinforcements 1 | . . . . . . . . . . . . . . . . . . . . . . . . . . . . . . . 1 . . . . . Zone Layout 17 | . 1 . 1 1 . . 1 . . . . . . . . . . . . . . . . . . 2 . . . . 1 4 3 2 1 . Garrison Registry 3 | . . . . . . . . . 1 . . . . . . . . . 1 . 1 . . . . . . . . . . . . . . . Security Stations 1 | . . . . . . . . . . . . . . . . . . . 1 . . . . . . . . . . . . . . . . . Fabricator Hacks 3 | . . . . . . . . . . . . . . . . . . . . . . . . . . . . 1 . . . 2 . . . . Network Status 2 | . . . . . . . . . . . . . . . . . . . . . . . . . . . . 1 . . . 1 . . . . Build 1 | . . . . . . . . . . . . . . . . . . . . . . . . . . . . . . . . 1 . . . . Repair Station Hacks 4 | . . . . . . . . . . . . . . . . . . . . 1 . . . . . . . . . . . . 3 . . . Scan Component 3 | . . . . . . . . . . . . . . . . . . . . 1 . . . . . . . . . . . . 2 . . . Repair 1 | . . . . . . . . . . . . . . . . . . . . . . . . . . . . . . . . . 1 . . . Recycling Unit Hacks 3 | . . . . . . . . . . . . . . . . . . . . . . 2 . . . . . 1 . . . . . . . . Retrieve Components 3 | . . . . . . . . . . . . . . . . . . . . . . 2 . . . . . 1 . . . . . . . . Scanalyzer 4 | . . . . . . . . . . . . . . . . . . . . . . . . . . . . . . . . . 3 1 . . Insert Component 4 | . . . . . . . . . . . . . . . . . . . . . . . . . . . . . . . . . 3 1 . . Garrison Access Hacks 16 | . . . . . . . . 1 . 1 . 1 . . . . . 1 . 1 . 1 . . . 1 . 1 . 2 2 4 . . . . Unlock Access 8 | . . . . . . . . 1 . 1 . 1 . . . . . 1 . 1 . 1 . . . 1 . 1 . . . . . . . . Seal Access 4 | . . . . . . . . . . . . . . . . . . . . . . . . . . . . . . 1 1 2 . . . . Coupler Status 4 | . . . . . . . . . . . . . . . . . . . . . . . . . . . . . . 1 1 2 . . . . Unauthorized Hacks 42 | . 9 . 11 . . . 3 1 . . . . . . . . . 1 . . . . . . . 4 . . . 4 . 4 3 2 . . Terminals 36 | . 7 . 10 . . . 2 1 . . . . . . . . . 1 . . . . . . . 4 . . . 4 . 3 2 2 . . Track 4 | . . . . . . . . . . . . . . . . . . . . . . . . . . 1 . . . 1 . 1 1 . . . Botnet 16 | . 2 . 3 . . . . 1 . . . . . . . . . 1 . . . . . . . 2 . . . 2 . 2 1 2 . . Operators 3 | . . . 1 . . . . . . . . . . . . . . . . . . . . . . 1 . . . 1 . . . . . . Skim 13 | . 5 . 6 . . . 2 . . . . . . . . . . . . . . . . . . . . . . . . . . . . . Fabricators 1 | . . . . . . . . . . . . . . . . . . . . . . . . . . . . . . . . 1 . . . . Haulers 1 | . . . . . . . . . . . . . . . . . . . . . . . . . . . . . . . . 1 . . . . Repair Stations . | . . . . . . . . . . . . . . . . . . . . . . . . . . . . . . . . . . . . . Recycling Units 4 | . 2 . 1 . . . 1 . . . . . . . . . . . . . . . . . . . . . . . . . . . . . Tunnel 4 | . 2 . 1 . . . 1 . . . . . . . . . . . . . . . . . . . . . . . . . . . . . Scanalyzers 1 | . . . . . . . . . . . . . . . . . . . . . . . . . . . . . . . . . 1 . . . Researchers 1 | . . . . . . . . . . . . . . . . . . . . . . . . . . . . . . . . . 1 . . . Garrison Access . | . . . . . . . . . . . . . . . . . . . . . . . . . . . . . . . . . . . . . Data Cores Recovered 1 | . . . . . . . . . . . . . . . . . . . . . . . . . . . . . . . 1 . . . . . Used . | . . . . . . . . . . . . . . . . . . . . . . . . . . . . . . . . . . . . . Hacking Detections 78 | . 5 . 8 1 . . 8 2 1 1 2 1 2 2 4 2 . 1 2 1 1 . 1 1 . . 1 1 1 3 4 8 5 5 4 . Full Trace Events 7 | . . . . . . . 2 . 1 . 1 . . 1 . . . . . . . . . . . . . . . . . 1 . . 1 . Feedback Events . | . . . . . . . . . . . . . . . . . . . . . . . . . . . . . . . . . . . . . Feedback Blocked . | . . . . . . . . . . . . . . . . . . . . . . . . . . . . . . . . . . . . . Robot Schematics Acquired . | . . . . . . . . . . . . . . . . . . . . . . . . . . . . . . . . . . . . . Robots Built . | . . . . . . . . . . . . . . . . . . . . . . . . . . . . . . . . . . . . . Authchips . | . . . . . . . . . . . . . . . . . . . . . . . . . . . . . . . . . . . . . Time . | . . . . . . . . . . . . . . . . . . . . . . . . . . . . . . . . . . . . . Total Robot Build Rating . | . . . . . . . . . . . . . . . . . . . . . . . . . . . . . . . . . . . . . Part Schematics Acquired 1 | . 1 . . . . . . . . . . . . . . . . . . . . . . . . . . . . . . . . . . . Parts Built 2 | . . . . . . . . . . . . . . . . . . . . . . . . . . . . . . . . 2 . . . . Authchips . | . . . . . . . . . . . . . . . . . . . . . . . . . . . . . . . . . . . . . Time 139 | . . . . . . . . . . . . . . . . . . . . . . . . . . . . . . . . 139 . . . . Total Part Build Rating 18 | . . . . . . . . . . . . . . . . . . . . . . . . . . . . . . . . 18 . . . . Parts Repaired 1 | . . . . . . . . . . . . . . . . . . . . . . . . . . . . . . . . . 1 . . . Time 124 | . . . . . . . . . . . . . . . . . . . . . . . . . . . . . . . . . 124 . . . Parts Recycled . | . . . . . . . . . . . . . . . . . . . . . . . . . . . . . . . . . . . . . Recycled Matter . | . . . . . . . . . . . . . . . . . . . . . . . . . . . . . . . . . . . . . Retrieved Matter . | . . . . . . . . . . . . . . . . . . . . . . . . . . . . . . . . . . . . . Retrieved Components . | . . . . . . . . . . . . . . . . . . . . . . . . . . . . . . . . . . . . . Parts Scanalyzed . | . . . . . . . . . . . . . . . . . . . . . . . . . . . . . . . . . . . . . Part Schematics Acquired . | . . . . . . . . . . . . . . . . . . . . . . . . . . . . . . . . . . . . . Parts Damaged . | . . . . . . . . . . . . . . . . . . . . . . . . . . . . . . . . . . . . . Bothacking | -11 -10 -10 -9 -9 -9 -8 -8 -7 -7 -7 -7 -6 -6 -6 -6 -6 -6 -6 -6 -5 -5 -5 -5 -4 -4 -4 -4 -4 -4 -3 -3 -2 -2 -2 -1 -1 ------------ Run | Yrd Mat Min Mat Min Exi Min Mat Fac Gar Fac Gar Fac Gar Fac Ext Cet Arc Hub Gar Fac Gar Fac Gar Fac Was Fac Gar Fac Gar Res Tes Res Qua Sec Acc Com Used RIF Installer 8 | . . . . . . . . . 1 . 1 . 1 . . . . . 1 . 1 . 1 . . . 1 . 1 . . . . . . . Hotswap 1 | . . . . . . . . . . . . . 1 . . . . . . . . . . . . . . . . . . . . . . . Threat Obfuscator 1 | . . . . . . . . . . . . . . . . . . . . . . . . . . . . . 1 . . . . . . . Signal Jammer 1 | . . . . . . . . . . . 1 . . . . . . . . . . . . . . . . . . . . . . . . . Zone Cloak 1 | . . . . . . . . . . . . . . . . . . . 1 . . . . . . . . . . . . . . . . . Robot Detection 1 | . . . . . . . . . . . . . . . . . . . . . . . 1 . . . . . . . . . . . . . Patrol Navigation 1 | . . . . . . . . . . . . . . . . . . . . . . . . . . . 1 . . . . . . . . . Autoassimilate 1 | . . . . . . . . . . . . . . . . . . . . . 1 . . . . . . . . . . . . . . . Robots Hacked 47 | . . . . . . . . . . . 6 . . . 6 . . . 3 1 5 1 1 . 6 2 4 . 9 . 3 . . . . . Non-combat 7 | . . . . . . . . . . . . . . . 3 . . . . 1 . 1 1 . . 1 . . . . . . . . . . Combat 40 | . . . . . . . . . . . 6 . . . 3 . . . 3 . 5 . . . 6 1 4 . 9 . 3 . . . . . Autoassimilated 3 | . . . . . . . . . . . . . . . . . . . . . . . . . . . 1 . 2 . . . . . . . Robot Hacks Applied 48 | . . . . . . . . . . . 7 . . . 6 . . . 3 1 7 1 1 . 7 2 3 . 7 . 3 . . . . . drop_inventory 4 | . . . . . . . . . . . . . . . 3 . . . . 1 . . . . . . . . . . . . . . . . disable_scanner 1 | . . . . . . . . . . . . . . . . . . . . . . . . . . . . . . . 1 . . . . . ignore_targets 6 | . . . . . . . . . . . . . . . . . . . . . . . . . 6 . . . . . . . . . . . find_garrison 1 | . . . . . . . . . . . . . . . . . . . . . . . . . . 1 . . . . . . . . . . mark_system 1 | . . . . . . . . . . . . . . . 1 . . . . . . . . . . . . . . . . . . . . . overload_power 1 | . . . . . . . . . . . . . . . . . . . . . . . . . 1 . . . . . . . . . . . amplify_resonance 10 | . . . . . . . . . . . 3 . . . . . . . 1 . 5 . . . . . . . . . 1 . . . . . reboot_system 1 | . . . . . . . . . . . . . . . . . . . . . . . . . . . . . . . 1 . . . . . overwrite_iff 17 | . . . . . . . . . . . 4 . . . 1 . . . 2 . 2 . . . . . 3 . 5 . . . . . . . formatsys_low 1 | . . . . . . . . . . . . . . . . . . . . . . . . . . 1 . . . . . . . . . . formatsys_high 5 | . . . . . . . . . . . . . . . 1 . . . . . . 1 1 . . . . . 2 . . . . . . . Relay Couplers Released 77 | . . . . . . . 3 . 10 . 8 . . . . . . . 13 1 13 . 17 . . . 8 . 4 . . . . . . . Machine Destruction 74 | . . . . . . . 3 . 10 . 8 . . . . . . . 10 1 13 . 17 . . . 8 . 4 . . . . . . . Programmers 3 | . . . . . . . . . . . . . . . . . . . 3 . . . . . . . . . . . . . . . . . Attached 19 | . . . . . . . . . . . 3 . . . 2 . . . 1 1 2 1 3 1 1 . 1 . 2 . 1 . . . . . Fabnet Peak Effective % . | . . . . . . . . . . . . . . . . . . . . . . . . . . . . . . . . . . . . . Robots Rewired 26 | . . . . . . . . . 4 . . . 6 . 13 . . . . . . . 2 . . . . . . . 1 . . . . . Allies Hacked 1 | . . . . . . . . . . . . . . . . . . . . . . . . . . 1 . . . . . . . . . . Hacks Repelled . | . . . . . . . . . . . . . . . . . . . . . . . . . . . . . . . . . . . . . Allies | -11 -10 -10 -9 -9 -9 -8 -8 -7 -7 -7 -7 -6 -6 -6 -6 -6 -6 -6 -6 -5 -5 -5 -5 -4 -4 -4 -4 -4 -4 -3 -3 -2 -2 -2 -1 -1 -------- Run | Yrd Mat Min Mat Min Exi Min Mat Fac Gar Fac Gar Fac Gar Fac Ext Cet Arc Hub Gar Fac Gar Fac Gar Fac Was Fac Gar Fac Gar Res Tes Res Qua Sec Acc Com Total Allies 98 | . . . . 1 . . . . 7 . 4 . 8 . 28 5 . . 2 . 2 1 5 . 19 1 5 . 9 . 1 . . . . . Largest Group 33 | . . . . 1 1 . . . 7 3 4 . 8 8 33 33 22 18 4 . 1 1 2 . 19 16 2 . 3 1 1 . . . . . Highest-Rated Group 1344 | . . . . 31 31 . . . 381 221 237 . 329 329 1178 1344 1094 875 247 . 40 26 238 . 702 575 74 . 141 49 162 . . . . . Highest-Rated Ally 162 | . . . . 31 31 . . . 95 95 95 . 80 80 159 159 96 96 96 . 40 26 119 . 50 46 47 . 58 49 162 . . . . . Total Orders 25 | . . . . . . . . . 1 . . 2 . . 2 3 . 6 . 4 . 2 1 . . 3 . . . . 1 . . . . . STAY 12 | . . . . . . . . . 1 . . . . . 1 1 . 5 . . . 1 . . . 2 . . . . 1 . . . . . FOLLOW 7 | . . . . . . . . . . . . . . . 1 2 . 1 . . . 1 1 . . 1 . . . . . . . . . . EXPLORE 3 | . . . . . . . . . . . . 1 . . . . . . . 2 . . . . . . . . . . . . . . . . RETURN 3 | . . . . . . . . . . . . 1 . . . . . . . 2 . . . . . . . . . . . . . . . . Ally Attacks 630 | . . . . . . . . . 42 . 29 . . . 110 71 25 77 42 . 5 . 29 . 85 71 18 . 20 6 . . . . . . Total Damage 16689 | . . . . . . . . . 1440 . 710 . . . 3083 1611 596 2451 1025 . 119 . 1275 . 1596 1354 584 . 623 222 . . . . . . Kills 93 | . . . . . . . . . 11 . 7 . . . 18 5 4 12 9 . 2 . 10 . 6 4 2 . 2 1 . . . . . . Allies Corrupted 5 | . . . . . . . . . . . . . . . . . . 4 . . . . 1 . . . . . . . . . . . . . Allies Melted 6 | . . . . . . . . . . . . . . . . . . . 1 . 1 . . . . 1 . . . . . . . . . 3 Intel | -11 -10 -10 -9 -9 -9 -8 -8 -7 -7 -7 -7 -6 -6 -6 -6 -6 -6 -6 -6 -5 -5 -5 -5 -4 -4 -4 -4 -4 -4 -3 -3 -2 -2 -2 -1 -1 ------- Run | Yrd Mat Min Mat Min Exi Min Mat Fac Gar Fac Gar Fac Gar Fac Ext Cet Arc Hub Gar Fac Gar Fac Gar Fac Was Fac Gar Fac Gar Res Tes Res Qua Sec Acc Com Active Infowar (turns) 16537 | . 420 . . 750 . . . 143 . . . 82 1206 217 930 . . 603 246 679 1 . . 249 5 690 . 210 64 748 1167 2130 1483 1281 1110 2123 Optics 2266 | . . . . . . . . . . . . . . . . . . . . . . . . . . . . . 1 . . . . 2 140 2123 Sensors 3879 | . 420 . . . . . . . . . . . . . . . . . . . . . . . . . . . . 1 816 . 416 1268 958 . IFF 3964 | . . . . . . . . . . . . 82 1206 217 930 . . 603 246 679 1 . . . . . . . . . . . . . . . Terrain 6531 | . . . . . . . . . . . . . . . . . . . . . . . . 249 5 690 . 107 63 653 953 711 1136 1042 922 . Seismic 2711 | . . . . 750 . . . 143 . . . . . . . . . . . . . . . . . . . . . . . 1481 337 . . . Jamming 1914 | . . . . . . . . . . . . . . . . . . . . . . . . . . . . 159 61 586 88 366 . . 451 203 ECM 3 | . . . . . . . . . . . . . . . . . . . . . . . . . . . . . . 1 . . . . . 2 Robot Analysis Total . | . . . . . . . . . . . . . . . . . . . . . . . . . . . . . . . . . . . . . Derelict Logs Recovered 3 | . . 1 . 2 . . . . . . . . . . . . . . . . . . . . . . . . . . . . . . . . Drone Launches 3 | . . . . . . . . . . . . 1 . . . . . . . 2 . . . . . . . . . . . . . . . . Drone Recoveries 2 | . . . . . . . . . . . . 1 . . . . . . . 1 . . . . . . . . . . . . . . . . Exploration | -11 -10 -10 -9 -9 -9 -8 -8 -7 -7 -7 -7 -6 -6 -6 -6 -6 -6 -6 -6 -5 -5 -5 -5 -4 -4 -4 -4 -4 -4 -3 -3 -2 -2 -2 -1 -1 ------------- Run | Yrd Mat Min Mat Min Exi Min Mat Fac Gar Fac Gar Fac Gar Fac Ext Cet Arc Hub Gar Fac Gar Fac Gar Fac Was Fac Gar Fac Gar Res Tes Res Qua Sec Acc Com Turns Passed 38938 | 88 826 705 1255 1006 533 1001 1906 951 1535 137 1455 376 1206 217 1754 773 448 668 806 792 896 213 1444 478 578 885 953 552 1122 850 2067 3259 1644 2326 1110 2123 Spaces Moved 17434 | 50 409 397 504 597 334 583 687 296 523 52 535 130 501 115 788 246 60 307 377 439 430 119 651 220 329 468 446 284 487 445 921 1409 713 1170 565 847 Core 4 | 4 . . . . . . . . . . . . . . . . . . . . . . . . . . . . . . . . . . . . Treads 16753 | 46 299 . 359 597 334 583 687 296 523 52 535 130 501 115 788 246 60 307 377 439 430 119 651 220 329 468 446 284 487 445 921 1409 713 1145 565 847 Legs . | . . . . . . . . . . . . . . . . . . . . . . . . . . . . . . . . . . . . . Wheels 652 | . 110 397 145 . . . . . . . . . . . . . . . . . . . . . . . . . . . . . . . . . Hover . | . . . . . . . . . . . . . . . . . . . . . . . . . . . . . . . . . . . . . Flight . | . . . . . . . . . . . . . . . . . . . . . . . . . . . . . . . . . . . . . Fastest Speed 50 | 50 120 120 120 160 160 160 160 243 246 238 238 238 157 157 157 157 152 152 152 152 160 160 155 155 160 160 160 160 160 163 158 155 146 146 146 143 Average Speed 172 | 151 149 125 204 160 160 160 240 243 246 244 238 238 222 157 157 215 190 152 152 157 160 160 157 158 160 160 160 160 161 164 179 162 149 146 156 156 Slowest Speed 320 | 160 160 165 240 160 160 160 320 247 247 247 238 238 241 157 157 237 237 152 152 160 160 160 235 160 160 160 240 160 165 165 238 253 250 146 160 246 Overloaded Moves . | . . . . . . . . . . . . . . . . . . . . . . . . . . . . . . . . . . . . . Propulsion Burnouts . | . . . . . . . . . . . . . . . . . . . . . . . . . . . . . . . . . . . . . Robots Hopped . | . . . . . . . . . . . . . . . . . . . . . . . . . . . . . . . . . . . . . Potential Cave-ins 27 | . . . . . . . . . . . . . . . . . . 6 . . . . . . . . . . . 2 6 3 2 . 6 2 Cave-ins Triggered 2 | . . . . . . . . . . . . . . . . . . . . . . . . . . . . . . 1 . 1 . . . . Spacefolds 10 | . . . . . . . . . . . . . . . . . . . . . . . . . . . . . . . . . . 10 . . Exploration Rate (%) 49 | 4 67 89 56 99 65 99 81 9 60 2 70 4 82 3 86 71 73 25 52 25 58 4 75 8 88 18 49 11 64 16 88 48 68 71 22 32 Regions Visited 36 Branch Regions 12 Pre-discovered Areas 8 | . 2 . 3 1 1 . 1 . . . . . . . . . . . . . . . . . . . . . . . . . . . . . Known Exits Taken 16 | . . 1 1 . 1 1 1 1 . 1 . 1 . . . . . 1 . 1 . 1 . . . 1 . 1 . 1 . 1 . 1 . . Unknown Exits Taken 10 | 1 1 . . 1 . . . . . . . . . 1 1 1 1 . . . . . . . . . . . . . 1 . 1 . 1 . Scrap Searched 5 | . . 1 . 2 . 2 . . . . . . . . . . . . . . . . . . . . . . . . . . . . . . Spaces Dug 171 | . . . . . . . 4 2 . . . 2 . . 1 . . 2 3 5 . . . 9 . 3 . 2 . 3 14 29 8 17 36 31 Terrain Destroyed 1185 | . . 49 26 16 . 24 57 21 31 . 13 3 . . 2 20 4 17 8 90 39 . 17 17 6 12 8 10 86 10 60 113 70 150 82 124 Melee 6 | . . . . . . . 4 2 . . . . . . . . . . . . . . . . . . . . . . . . . . . . Projectile 629 | . . . . . . . 1 . . . . 3 . . . 20 4 16 8 14 12 . 15 17 6 12 7 10 18 10 58 92 53 114 47 92 AOE 538 | . . 49 26 16 . 24 52 19 31 . 11 . . . . . . . . 76 27 . . . . . . . 68 . . 19 17 36 35 32 Terrain Rammed . | . . . . . . . . . . . . . . . . . . . . . . . . . . . . . . . . . . . . . Walls Destroyed . | . . . . . . . . . . . . . . . . . . . . . . . . . . . . . . . . . . . . . Machines Disabled . | . . . . . . . . . . . . . . . . . . . . . . . . . . . . . . . . . . . . . Actions | -11 -10 -10 -9 -9 -9 -8 -8 -7 -7 -7 -7 -6 -6 -6 -6 -6 -6 -6 -6 -5 -5 -5 -5 -4 -4 -4 -4 -4 -4 -3 -3 -2 -2 -2 -1 -1 --------- Run | Yrd Mat Min Mat Min Exi Min Mat Fac Gar Fac Gar Fac Gar Fac Ext Cet Arc Hub Gar Fac Gar Fac Gar Fac Was Fac Gar Fac Gar Res Tes Res Qua Sec Acc Com Total 23154 | 60 539 595 635 624 333 615 862 412 686 62 642 185 581 130 1135 416 375 467 490 507 539 134 876 306 363 544 580 331 685 519 1188 2029 1108 1573 710 1318 Wait 1949 | . 46 171 15 8 . 3 37 6 8 . 14 29 8 . 132 96 299 111 15 8 8 3 37 28 12 9 48 3 52 3 60 223 179 138 21 119 Move 17387 | 49 408 396 503 596 333 582 686 296 522 52 534 130 499 114 787 245 59 306 376 439 429 118 650 220 328 468 445 284 486 443 920 1407 712 1154 564 847 Hop . | . . . . . . . . . . . . . . . . . . . . . . . . . . . . . . . . . . . . . Pick Up 318 | 6 16 4 12 2 . 3 25 7 22 3 8 6 4 . 1 7 3 1 4 6 11 1 16 4 2 5 6 3 6 6 8 24 19 23 13 31 Fast Attach 212 | 4 3 2 5 . . 2 5 2 2 . 2 2 3 2 3 7 1 6 6 2 . . 13 5 . 6 6 4 17 10 17 15 9 17 7 27 Attach 148 | . . . 4 3 . 1 6 10 11 . 3 2 . . 1 2 2 1 . 5 8 1 12 2 . . 3 . 6 3 1 12 10 6 10 23 Detach 90 | . . 1 . . . . 2 1 4 . 1 . . . 2 1 1 2 . 3 5 1 10 2 . 1 1 . 5 2 3 10 6 3 6 17 Swap 545 | . 6 2 14 . . 2 19 15 10 3 19 3 3 2 10 9 . 9 15 15 21 1 13 10 6 15 13 11 25 15 35 69 49 66 15 25 Drop 418 | . 6 6 19 1 . . 23 5 14 4 6 6 11 2 3 17 2 7 9 6 7 . 17 10 2 10 10 6 15 15 27 33 26 30 13 50 Fire 1779 | . 53 8 63 13 . 19 53 64 60 . 45 7 10 1 52 24 8 19 65 19 50 9 96 25 13 29 48 20 72 21 110 234 96 134 61 178 Melee 11 | . . . . . . . 4 5 . . . . . . . . . . . . . . . . . . . . . . . . 2 . . . Ram 5 | . . 5 . . . . . . . . . . . . . . . . . . . . . . . . . . . . . . . . . . Kick . | . . . . . . . . . . . . . . . . . . . . . . . . . . . . . . . . . . . . . Crush 25 | 1 1 . . 1 . 3 2 1 . . . . . . 2 . . 2 . 4 . . . . . 1 . . 1 . 2 1 . 2 . 1 Escape Stasis 14 | . . . . . . . . . 2 . 10 . . . . . . . . . . . . . . . . . . 1 . 1 . . . . Rewire 185 | . . . . . . . . . 31 . . . 43 . 94 . . . . . . . 12 . . . . . . . 5 . . . . . Trap . | . . . . . . . . . . . . . . . . . . . . . . . . . . . . . . . . . . . . . Miscellaneous 68 | . . . . . . . . . . . . . . 9 48 8 . 3 . . . . . . . . . . . . . . . . . . Route ------- -11/Scrapyard -10/Materials (discovered 5 exits: *Mat x3 / *Min / Sub) -10/Mines (discovered 3 exits: *Mat x2 / *Sub) -9/Materials (discovered 4 exits: *Mat x3 / *Min) -9/Mines (discovered 4 exits: *Mat x2 / *Exi / [*Zio]) -9/Exiles (discovered 2 exits: *Min x2) -8/Mines (discovered 2 exits: *Mat x2) -8/Materials (discovered 3 exits: *Fac x3) -7/Factory (discovered 2 exits: Sto / Gar) -7/Garrison (discovered 3 exits: *Fac x3) -7/Factory -7/Garrison (discovered 4 exits: *Fac x3 / [*Fac]) -6/Factory -6/Garrison (discovered 3 exits: *Fac x3) -6/Factory -6/Extension (discovered 2 exits: *Fac / *Cet) -6/Cetus (discovered 2 exits: *Fac / [*Arc]) -6/Archives (discovered 2 exits: *Hub x2) -6/Hub_04(d) -6/Garrison (discovered 3 exits: *Fac x3) -5/Factory (discovered 3 exits: *Fac x2 / Gar) -5/Garrison (discovered 3 exits: *Fac x3) -5/Factory -5/Garrison (discovered 2 exits: *Fac x2) -4/Factory -4/Waste -4/Factory -4/Garrison (discovered 2 exits: *Fac x2) -4/Factory (discovered 3 exits: *Res / [*Upp] / Gar) -4/Garrison (discovered 3 exits: *Res x3) -3/Research (discovered 2 exits: *Tes x2) -3/Testing -2/Research (discovered 5 exits: *Acc x3 / *Qua x2) -2/Quarantine (discovered 2 exits: *Sec / [*Frg]) -2/Section 7 -1/Access -1/Command (discovered 2 exits: Sur x2) By MAIN.C's Side History --------- Turn | Location | Event 3 | -11/Scrapyard | Discovered new exit (range 16) 89 | -11/Scrapyard | Entered Materials 318 | -10/Materials | Build established: Mutant 368 | -10/Materials | Discovered new exit (range 4) 691 | -10/Materials | Discovered new exit (range 3) 699 | -10/Materials | Identified exit to Materials 751 | -10/Materials | Discovered new exit (range 16) 850 | -10/Materials | Identified exit to Subcaves 872 | -10/Materials | Learned location of 2 exits from Materials 915 | -10/Materials | Entered Mines 916 | -10/Mines | Assembled infested the area 921 | -10/Mines | Assisted by a Guerilla fighting off Assembled 928 | -10/Mines | Met a Derelict shopkeep closing up shop 1238 | -10/Mines | Discovered exit to Subcaves (range 9) 1322 | -10/Mines | Learned Materials terminal intel 1456 | -10/Mines | Found a hidden stash of uninstalled traps 1620 | -10/Mines | Entered Materials 1620 | -9/Materials | Evolved 2 slots: Propulsion x1, Weapon x1 1621 | -9/Materials | Identified exit to Materials 1621 | -9/Materials | Identified exit to Mines 1622 | -9/Materials | Loaded intel: 12 terminal locations 1923 | -9/Materials | Build established: Tank 2652 | -9/Materials | Learned location of 2 exits from Materials 2740 | -9/Materials | Build established: Scavenger-Tank 2793 | -9/Materials | Learned Storage stockpile data 2859 | -9/Materials | Loaded intel: 21 trap records 2875 | -9/Materials | Entered Mines 2903 | -9/Mines | Met a Derelict bent on vengeance 2996 | -9/Mines | Deemed a non-threat by the Exiles lab entrance 3026 | -9/Mines | A Derelict revealed a hidden shortcut to a safe place 3157 | -9/Mines | Build established: Scavenger-Gunner 3260 | -9/Mines | Learned 2 Materials zone layouts 3636 | -9/Mines | Learned location of Storage (-7) 3646 | -9/Mines | Discovered exit to Materials (range 7) 3774 | -9/Mines | Received a Mining Laser from a helpful Derelict 3875 | -9/Mines | Discovered new exit (range 5) 3881 | -9/Mines | Entered Exiles 3881 | -9/Exiles | Accompanied by 1 ally 3882 | -9/Exiles | Identified exit to Mines 3916 | -9/Exiles | Build established: Scavenger-Tank 3921 | -9/Exiles | Met 8R-AWN 3947 | -9/Exiles | Met EX-HEX 4009 | -9/Exiles | Met EX-DEC 4019 | -9/Exiles | Learned location of Zion (-7) 4222 | -9/Exiles | Visited The Gauntlet 4397 | -9/Exiles | Discovered exit to Mines (range 14) 4414 | -9/Exiles | Entered Mines 5053 | -8/Mines | Discovered exit to Materials (range 5) 5124 | -8/Mines | Discovered exit to Materials (range 9) 5415 | -8/Mines | Entered Materials 5415 | -8/Materials | Evolved 2 slots: Utility x2 5416 | -8/Materials | Identified exit to Factory 5462 | -8/Materials | Garrison activated, responded to threat 5760 | -8/Materials | Met 7R-MNS 6281 | -8/Materials | Build established: Scavenger-Gunner 7321 | -8/Materials | Entered Factory 7321 | -7/Factory | Evolved 2 slots: Propulsion x1, Utility x1 7322 | -7/Factory | Caught up to 7R-MNS 7322 | -7/Factory | Identified exit to Storage 7492 | -7/Factory | Build established: Gunner 7882 | -7/Factory | Lost 3 parts (1n1u1w) 7947 | -7/Factory | Garrison activated, responded to threat 8001 | -7/Factory | Cargo convoy interrupted 8173 | -7/Factory | Garrison activated, responded to threat 8232 | -7/Factory | Lost 5 parts (1n2u2w) 8272 | -7/Factory | Identified exit to Garrison 8272 | -7/Factory | Entered Garrison 8299 | -7/Garrison | Installed Relay Interface Framework 8374 | -7/Garrison | Triggered checkpoint 8430 | -7/Garrison | Triggered checkpoint 8465 | -7/Garrison | Destroyed 12 combat bots 8473 | -7/Garrison | Lost 3 parts (2n1w) 8582 | -7/Garrison | Found embedded Infiltrators 8608 | -7/Garrison | Triggered checkpoint 8614 | -7/Garrison | Discovered new exit (range 13) 8615 | -7/Garrison | Build established: Tank 8665 | -7/Garrison | Garrison Relay disabled 8779 | -7/Garrison | Rescued a captive Derelict 8902 | -7/Garrison | Triggered checkpoint 8958 | -7/Garrison | Triggered checkpoint 8965 | -7/Garrison | Garrison Relay disabled 9436 | -7/Garrison | Triggered checkpoint 9455 | -7/Garrison | Garrison Relay disabled 9487 | -7/Garrison | Discovered new exit (range 56) 9487 | -7/Garrison | Discovered new exit (range 37) 9487 | -7/Garrison | Discovered new exit (range 30) 9580 | -7/Garrison | Triggered checkpoint 9695 | -7/Garrison | Build established: Gunner 9807 | -7/Garrison | Entered Factory 9807 | -7/Factory | Accompanied by 3 allies 9944 | -7/Factory | Identified exit to Garrison 9944 | -7/Factory | Entered Garrison 9944 | -7/Garrison | Accompanied by 3 allies 9994 | -7/Garrison | Triggered checkpoint 10036 | -7/Garrison | Garrison Relay disabled 10131 | -7/Garrison | Lost 3 allies 10144 | -7/Garrison | Build established: Bothacker-Gunner 10172 | -7/Garrison | Triggered checkpoint 10281 | -7/Garrison | Triggered checkpoint 10300 | -7/Garrison | Triggered checkpoint 10312 | -7/Garrison | Core integrity fell below 50% 10412 | -7/Garrison | Triggered checkpoint 10441 | -7/Garrison | Garrison Relay disabled 10470 | -7/Garrison | Triggered checkpoint 10500 | -7/Garrison | Discovered new exit (range 3) 10586 | -7/Garrison | Discovered new exit (range 10) 10691 | -7/Garrison | Triggered checkpoint 10802 | -7/Garrison | Triggered checkpoint 10913 | -7/Garrison | Discovered new exit (range 12) 11193 | -7/Garrison | Expanded RIF knowledge: Signal Jamming 11353 | -7/Garrison | Discovered new exit (range 12) 11399 | -7/Garrison | Entered Factory 11399 | -6/Factory | Evolved 2 slots: Utility x1, Weapon x1 11680 | -6/Factory | Garrison activated, responded to threat 11775 | -6/Factory | Identified exit to Garrison 11775 | -6/Factory | Entered Garrison 11775 | -6/Garrison | Discovered recently destroyed garrison 11776 | -6/Garrison | Found embedded Infiltrators 12193 | -6/Garrison | Discovered new exit (range 10) 12477 | -6/Garrison | Discovered new exit (range 14) 12910 | -6/Garrison | Expanded RIF knowledge: Hotswap 12932 | -6/Garrison | Discovered new exit (range 11) 12981 | -6/Garrison | Entered Factory 12981 | -6/Factory | Accompanied by 8 allies 13059 | -6/Factory | Build established: Bothacker-Tank 13190 | -6/Factory | Discovered new exit (range 5) 13198 | -6/Factory | Entered Extension 13198 | -6/Extension | Accompanied by 8 allies 13361 | -6/Extension | Rescued a captive Derelict 13361 | -6/Extension | Rescued a captive Derelict 13545 | -6/Extension | Rescued a captive Derelict 13577 | -6/Extension | Rescued a captive Derelict 13630 | -6/Extension | Rescued a captive Derelict 13631 | -6/Extension | Rescued a captive Derelict 13671 | -6/Extension | Rescued A7 13747 | -6/Extension | Rescued a captive Derelict 13810 | -6/Extension | Rescued a captive Derelict 13879 | -6/Extension | Rescued a captive Derelict 13886 | -6/Extension | Rescued a captive Derelict 14115 | -6/Extension | Spotted B-75 Beast 14128 | -6/Extension | Spotted B-75 Beast 14139 | -6/Extension | Allies destroyed B-75 Beast 14144 | -6/Extension | Allies destroyed B-75 Beast 14420 | -6/Extension | Rescued a captive Derelict 14540 | -6/Extension | Build established: Commander-Tank 14579 | -6/Extension | Rescued a captive Derelict 14803 | -6/Extension | Discovered new exit (range 10) 14805 | -6/Extension | Discovered new exit (range 6) 14952 | -6/Extension | Entered Cetus 14952 | -6/Cetus | Accompanied by 33 allies (A7) 14957 | -6/Cetus | Acquired a Cetus Manufacturing Module code from A7 14968 | -6/Cetus | Spotted Cetus Guard 14968 | -6/Cetus | Spotted Cetus Guard 14970 | -6/Cetus | Spotted Cetus Guard 14970 | -6/Cetus | Spotted Cetus Guard 14987 | -6/Cetus | Destroyed Cetus Guard 14989 | -6/Cetus | Allies destroyed Cetus Guard 14994 | -6/Cetus | Destroyed Cetus Guard 14994 | -6/Cetus | Destroyed Cetus Guard 15025 | -6/Cetus | Lost 12 allies 15098 | -6/Cetus | Started Cetus Manufacturing Module 15123 | -6/Cetus | Manufactured an Enhanced Grunt 15141 | -6/Cetus | Escorted A7 to Cetus Mainframe 15148 | -6/Cetus | Manufactured an Enhanced Grunt 15173 | -6/Cetus | Manufactured an Enhanced Grunt 15198 | -6/Cetus | Manufactured an Enhanced Grunt 15217 | -6/Cetus | Discovered new exit (range 15) 15223 | -6/Cetus | Manufactured an Enhanced Grunt 15256 | -6/Cetus | Spotted Cetus Guard 15261 | -6/Cetus | Destroyed Cetus Guard 15264 | -6/Cetus | Spotted Cetus Guard 15265 | -6/Cetus | Destroyed Cetus Guard 15268 | -6/Cetus | Allies destroyed Cetus Guard 15268 | -6/Cetus | Spotted Cetus Guard 15276 | -6/Cetus | Allies destroyed Cetus Guard 15292 | -6/Cetus | Discovered new exit (range 16) 15304 | -6/Cetus | Met Revision 17 15489 | -6/Cetus | Murdered A7 15494 | -6/Cetus | Extracted ID and sensor layout for unrecognized location from A7's data core 15502 | -6/Cetus | Found Prototype Protection 15502 | -6/Cetus | Identified Med. Regenerative Plating 15702 | -6/Cetus | Security sweep announced 15725 | -6/Cetus | Entered Archives 15725 | -6/Archives | Accompanied by 22 allies 15779 | -6/Archives | Discovered new exit (range 16) 15797 | -6/Archives | Lost 4 allies 15811 | -6/Archives | Build established: Commander-Gunner 15857 | -6/Archives | Discovered new exit (range 16) 16116 | -6/Archives | Build established: Commander-Tank 16173 | -6/Archives | Entered Hub_04(d) 16173 | -6/Hub_04(d) | Accompanied by 18 allies 16510 | -6/Hub_04(d) | Identified exit to Garrison 16590 | -6/Hub_04(d) | Lost 4 allies 16626 | -6/Hub_04(d) | Network Hub disabled 16728 | -6/Hub_04(d) | Spotted Lightning 16729 | -6/Hub_04(d) | Spotted Lightning 16730 | -6/Hub_04(d) | Spotted Lightning 16732 | -6/Hub_04(d) | Allies destroyed Lightning 16737 | -6/Hub_04(d) | Found Prototype Device 16737 | -6/Hub_04(d) | Identified Exp. Phase Shifter 16752 | -6/Hub_04(d) | Destroyed Lightning 16752 | -6/Hub_04(d) | Allies destroyed Lightning 16753 | -6/Hub_04(d) | Network Hub disabled 16761 | -6/Hub_04(d) | Found Prototype Energy Cannon 16761 | -6/Hub_04(d) | Identified EMDS 16771 | -6/Hub_04(d) | Lost 5 allies 16782 | -6/Hub_04(d) | Found Prototype Device 16782 | -6/Hub_04(d) | Identified Exp. EM Shield 16841 | -6/Hub_04(d) | Entered Garrison 16841 | -6/Garrison | Accompanied by 3 allies 16848 | -6/Garrison | Triggered checkpoint 16859 | -6/Garrison | Triggered checkpoint 16913 | -6/Garrison | Triggered checkpoint 16983 | -6/Garrison | Garrison Relay disabled 17034 | -6/Garrison | Build established: Scavenger-Tank 17097 | -6/Garrison | Triggered checkpoint 17124 | -6/Garrison | Triggered checkpoint 17168 | -6/Garrison | Triggered checkpoint 17246 | -6/Garrison | Destroyed 7 combat bots 17295 | -6/Garrison | Discovered new exit (range 48) 17295 | -6/Garrison | Discovered new exit (range 19) 17295 | -6/Garrison | Discovered new exit (range 46) 17330 | -6/Garrison | Expanded RIF knowledge: Zone Cloak 17379 | -6/Garrison | Triggered checkpoint 17416 | -6/Garrison | Spotted Striker 17566 | -6/Garrison | Learned Factory security intel 17574 | -6/Garrison | Triggered checkpoint 17604 | -6/Garrison | Garrison Relay disabled 17647 | -6/Garrison | Entered Factory 17647 | -5/Factory | Evolved 2 slots: Power x1, Propulsion x1 18161 | -5/Factory | Discovered new exit (range 39) 18404 | -5/Factory | Discovered new exit (range 10) 18439 | -5/Factory | Identified exit to Garrison 18439 | -5/Factory | Entered Garrison 18462 | -5/Garrison | Expanded RIF knowledge: Autoassimilate 18508 | -5/Garrison | Triggered checkpoint 18569 | -5/Garrison | Garrison Relay disabled 18662 | -5/Garrison | Triggered checkpoint 18663 | -5/Garrison | Triggered checkpoint 18715 | -5/Garrison | Spotted B-75 Beast 18746 | -5/Garrison | Destroyed B-75 Beast 18823 | -5/Garrison | Discovered new exit (range 8) 18838 | -5/Garrison | Triggered checkpoint 18889 | -5/Garrison | Garrison Relay disabled 18986 | -5/Garrison | Triggered checkpoint 19033 | -5/Garrison | Triggered checkpoint 19064 | -5/Garrison | Destroyed 9 combat bots 19119 | -5/Garrison | Discovered new exit (range 5) 19231 | -5/Garrison | Triggered checkpoint 19296 | -5/Garrison | Discovered new exit (range 12) 19296 | -5/Garrison | Discovered new exit (range 40) 19296 | -5/Garrison | Discovered new exit (range 65) 19335 | -5/Garrison | Entered Factory 19537 | -5/Factory | Identified exit to Garrison 19548 | -5/Factory | Entered Garrison 19548 | -5/Garrison | Accompanied by 1 ally 19644 | -5/Garrison | Triggered checkpoint 19709 | -5/Garrison | Found embedded Infiltrators 19740 | -5/Garrison | Garrison Relay disabled 19854 | -5/Garrison | Triggered checkpoint 19943 | -5/Garrison | Destroyed 9 combat bots 20010 | -5/Garrison | Triggered checkpoint 20120 | -5/Garrison | Triggered checkpoint 20157 | -5/Garrison | Expanded RIF knowledge: Robot Detection 20194 | -5/Garrison | Garrison Relay disabled 20284 | -5/Garrison | Discovered new exit (range 5) 20415 | -5/Garrison | Garrison Relay disabled 20476 | -5/Garrison | Triggered checkpoint 20563 | -5/Garrison | Spotted Striker 20563 | -5/Garrison | Spotted Striker 20588 | -5/Garrison | Destroyed Striker 20597 | -5/Garrison | Destroyed Striker 20621 | -5/Garrison | Lost 3 parts (1n1u1w) 20629 | -5/Garrison | Rewired Executioner 20636 | -5/Garrison | Rewired Executioner 20692 | -5/Garrison | Destroyed Executioner 20709 | -5/Garrison | Found Prototype Processor 20709 | -5/Garrison | Identified Exp. Targeting Computer 20718 | -5/Garrison | Discovered new exit (range 12) 20726 | -5/Garrison | Triggered checkpoint 20816 | -5/Garrison | Destroyed Executioner 20823 | -5/Garrison | Found Prototype Processor 20823 | -5/Garrison | Identified Exp. Core Analyzer 20888 | -5/Garrison | Triggered checkpoint 20992 | -5/Garrison | Entered Factory 20992 | -4/Factory | Evolved 2 slots: Propulsion x1, Utility x1 21470 | -4/Factory | Sucked down chute 21470 | -4/Factory | Entered Waste 21485 | -4/Waste | Spotted C-40 Crusher 21486 | -4/Waste | Spotted C-40 Crusher 21488 | -4/Waste | Spotted C-40 Crusher 21510 | -4/Waste | Spotted C-40 Crusher 21521 | -4/Waste | Spotted C-40 Crusher 21526 | -4/Waste | Spotted C-40 Crusher 21657 | -4/Waste | Discovered new exit (range 11) 21882 | -4/Waste | Warlord forces began an assault 21906 | -4/Waste | Allies destroyed C-40 Crusher 21926 | -4/Waste | Allies destroyed C-40 Crusher 21956 | -4/Waste | Allies destroyed C-40 Crusher 21992 | -4/Waste | Allies destroyed C-40 Crusher 21996 | -4/Waste | Destroyed C-40 Crusher 22048 | -4/Waste | Entered Factory 22048 | -4/Factory | Accompanied by 15 allies 22429 | -4/Factory | Build established: Scavenger-Gunner 22473 | -4/Factory | Lost 7 allies 22657 | -4/Factory | Spotted B-86 Titan 22668 | -4/Factory | Destroyed B-86 Titan 22834 | -4/Factory | Lost 3 allies 22905 | -4/Factory | Build established: Scavenger-Tank 22933 | -4/Factory | Identified exit to Garrison 22933 | -4/Factory | Entered Garrison 22933 | -4/Garrison | Accompanied by 1 ally 23070 | -4/Garrison | Triggered checkpoint 23072 | -4/Garrison | Triggered checkpoint 23076 | -4/Garrison | Spotted B-86 Titan 23150 | -4/Garrison | Destroyed B-86 Titan 23282 | -4/Garrison | P-70 Sage assimilated allied Veteran 7a 23330 | -4/Garrison | Rescued a captive Derelict 23371 | -4/Garrison | Garrison Relay disabled 23404 | -4/Garrison | Discovered new exit (range 8) 23540 | -4/Garrison | Triggered checkpoint 23689 | -4/Garrison | Triggered checkpoint 23753 | -4/Garrison | Expanded RIF knowledge: Patrol Navigation 23792 | -4/Garrison | Garrison Relay disabled 23864 | -4/Garrison | Discovered new exit (range 14) 23886 | -4/Garrison | Entered Factory 23942 | -4/Factory | Discovered new exit (range 12) 24244 | -4/Factory | Discovered new exit (range 7) 24325 | -4/Factory | Spotted B-86 Titan 24349 | -4/Factory | Destroyed B-86 Titan 24438 | -4/Factory | Identified exit to Garrison 24438 | -4/Factory | Entered Garrison 24464 | -4/Garrison | Expanded RIF knowledge: Threat Obfuscation 24666 | -4/Garrison | Triggered checkpoint 24697 | -4/Garrison | Triggered checkpoint 24758 | -4/Garrison | Destroyed 8 combat bots 24795 | -4/Garrison | Discovered new exit (range 13) 24806 | -4/Garrison | Triggered checkpoint 24884 | -4/Garrison | Garrison Relay disabled 24987 | -4/Garrison | Triggered checkpoint 25102 | -4/Garrison | Discovered new exit (range 11) 25146 | -4/Garrison | Triggered checkpoint 25273 | -4/Garrison | Heavy support dispatched to Research 25419 | -4/Garrison | H-XX Assembler disabled 25503 | -4/Garrison | Discovered new exit (range 12) 25532 | -4/Garrison | Triggered checkpoint 25560 | -4/Garrison | Entered Research 25560 | -3/Research | Accompanied by 1 ally 25560 | -3/Research | Evolved 2 slots: Utility x2 25603 | -3/Research | Identified exit to Testing 25658 | -3/Research | Build established: Scavenger-Gunner 25760 | -3/Research | Revision forces began assault on 0b10 25855 | -3/Research | Met up with Revision 17++ 25969 | -3/Research | Build established: Scavenger-Tank 26112 | -3/Research | Found Gamma Bomb Array 26250 | -3/Research | Crushed by falling debris 26260 | -3/Research | Research terminal network offline 26410 | -3/Research | Entered Testing 26433 | -3/Testing | Found Prototype Processor 26433 | -3/Testing | Identified Spectral Analyzer 26474 | -3/Testing | Unstable Terrabomb Derivative detonated 26602 | -3/Testing | Found Prototype Energy Cannon 26602 | -3/Testing | Identified Potential Cannon 26606 | -3/Testing | Found Prototype Energy Cannon 26606 | -3/Testing | Identified Imp. Potential Cannon 27419 | -3/Testing | Rewired PX-35EDI7HNSW 27437 | -3/Testing | Destroyed PX-35EDI7HNSW 28128 | -3/Testing | Found Prototype Protection 28128 | -3/Testing | Identified SHELL Armor 28414 | -3/Testing | Discovered new exit (range 3) 28477 | -3/Testing | Entered Research 28477 | -2/Research | Evolved 2 slots: Power x1, Utility x1 28769 | -2/Research | Build established: Scavenger-Gunner 28795 | -2/Research | Fabricated Quantum Reactor (x2) 28864 | -2/Research | Crushed by falling debris 28895 | -2/Research | Lost 3 parts (3u) 28945 | -2/Research | Found Unknown Device 28945 | -2/Research | Identified Launcher Loader 29037 | -2/Research | Destroyed 8 combat bots 29153 | -2/Research | Build established: Scavenger-Tank 29258 | -2/Research | Found Exp. Core Analyzer 29350 | -2/Research | Destroyed 7 combat bots 29537 | -2/Research | System corruption reached 10% 29672 | -2/Research | Spotted B-90 Cyclops 29695 | -2/Research | Destroyed B-90 Cyclops 29823 | -2/Research | Discovered new exit (range 15) 30461 | -2/Research | Found Prototype Device 30461 | -2/Research | Identified Exp. Shield Generator 30977 | -2/Research | First assault squad dispatched 31004 | -2/Research | Identified exit to Access 31536 | -2/Research | Identified exit to Quarantine 31736 | -2/Research | Entered Quarantine 31762 | -2/Quarantine | Found Alien Artifact 31810 | -2/Quarantine | Found Alien Artifact 31986 | -2/Quarantine | First assault squad dispatched 32423 | -2/Quarantine | Cryocooling Duct disabled 32438 | -2/Quarantine | Ambient heat levels rising (+20) 32438 | -2/Quarantine | Non-combat units ordered to evacuate 32558 | -2/Quarantine | Found Alien Artifact 32717 | -2/Quarantine | Identified Core Reset Matrix 32717 | -2/Quarantine | Identified Transdimensional Reconstructor 32717 | -2/Quarantine | Identified Subatomic Replicator 33026 | -2/Quarantine | Repaired Broken Exp. Cooling System 33067 | -2/Quarantine | Found Alien Impact Weapon 33108 | -2/Quarantine | Identified Core Stripper 33140 | -2/Quarantine | Spotted Fortress 33150 | -2/Quarantine | Destroyed Fortress 33158 | -2/Quarantine | Found Prototype Reactor 33158 | -2/Quarantine | Identified Vortex Chain Reactor 33162 | -2/Quarantine | Found Vortex Chain Reactor 33202 | -2/Quarantine | Found Prototype Device 33202 | -2/Quarantine | Identified Thermal Barrier 33209 | -2/Quarantine | Found Prototype Device 33209 | -2/Quarantine | Identified Exp. Force Field 33373 | -2/Quarantine | Discovered new exit (range 6) 33373 | -2/Quarantine | Discovered new exit (range 7) 33380 | -2/Quarantine | Entered Section 7 33571 | -2/Section 7 | Found Quantum Capacitor 33745 | -2/Section 7 | Build established: Skirmisher 33813 | -2/Section 7 | Destroyed 7 combat bots 33860 | -2/Section 7 | Found Alien Artifact 33860 | -2/Section 7 | Identified Spacefold Activator 33944 | -2/Section 7 | Found Alien Artifact 33944 | -2/Section 7 | Identified Integrity Redistributor 33944 | -2/Section 7 | Used Integrity Redistributor, redistributed integrity from core (-169) 34096 | -2/Section 7 | Spotted Executioner 34103 | -2/Section 7 | Spotted Executioner 34127 | -2/Section 7 | Destroyed Executioner 34132 | -2/Section 7 | Destroyed Executioner 34165 | -2/Section 7 | Found Prototype Device 34165 | -2/Section 7 | Identified Adv. Kinecellerator 34174 | -2/Section 7 | Found Adv. Kinecellerator 34361 | -2/Section 7 | Found Alien Artifact 34361 | -2/Section 7 | Identified Core Expander 34361 | -2/Section 7 | Installed Core Expander, added new Power slot 34418 | -2/Section 7 | Used Subatomic Replicator to replicate Alien Artifact 34419 | -2/Section 7 | Found Alien Artifact 34419 | -2/Section 7 | Identified LRC Insulator 34419 | -2/Section 7 | Installed LRC Insulator, 1 resistance modified: EM +25% 34422 | -2/Section 7 | Installed LRC Insulator, 1 resistance modified: EM +25% 34654 | -2/Section 7 | Build established: Generator-Skirmisher 34716 | -2/Section 7 | Core integrity fell below 50% 34739 | -2/Section 7 | Found Fusion Bomb Launcher 34746 | -2/Section 7 | Spotted S7 Guard 34756 | -2/Section 7 | Found Alien Artifact 34777 | -2/Section 7 | Destroyed S7 Guard 34995 | -2/Section 7 | Identified Navigation Efficiency Matrix 35169 | -2/Section 7 | Build established: Generator-Tank 35550 | -2/Section 7 | Spotted B-90 Cyclops 35630 | -2/Section 7 | First assault squad dispatched 35632 | -2/Section 7 | Destroyed B-90 Cyclops 35690 | -2/Section 7 | Spotted S7 Guard 35699 | -2/Section 7 | Found Alien Artifact 35699 | -2/Section 7 | Identified Core Regenerator 35699 | -2/Section 7 | Used Core Regenerator, restored core integrity (+362) 35706 | -2/Section 7 | Entered Access 35706 | -1/Access | Evolved 2 slots: Utility x2 36371 | -1/Access | Build established: Generator-Skirmisher 36676 | -1/Access | Found Spectral Analyzer 36806 | -1/Access | Discovered new exit (range 7) 36816 | -1/Access | Entered Command 37202 | -1/Command | Build established: Generator-Tank 37255 | -1/Command | Destroyed 8 combat bots 37289 | -1/Command | Spotted B-99 Colossus 37766 | -1/Command | Spotted M Guard 37768 | -1/Command | Spotted M Guard 37768 | -1/Command | Spotted Combat Programmer 37769 | -1/Command | Spotted Combat Programmer 37816 | -1/Command | First assault squad dispatched 38115 | -1/Command | Met MAIN.C 38120 | -1/Command | 0b10 Conduit disabled 38174 | -1/Command | Destroyed MAIN.C Shell 38177 | -1/Command | MAIN.C activated Command garrisons 38178 | -1/Command | Surrendered to MAIN.C 38178 | -1/Command | Loaded intel: 57 machine locations 38178 | -1/Command | Loaded intel: 111 trap records 38178 | -1/Command | Identified exit to Surface 38178 | -1/Command | Discovered exit to Surface (range 47) 38178 | -1/Command | Discovered exit to Surface (range 104) 38206 | -1/Command | Lost 4 parts (1p3u) 38290 | -1/Command | Found Prototype Reactor 38292 | -1/Command | Found Prototype Reactor 38294 | -1/Command | Identified Zero-point Reactor (x2) 38296 | -1/Command | Found Exp. Force Field 38299 | -1/Command | Found Prototype Processor 38299 | -1/Command | Identified Exp. Melee Analysis Suite 38302 | -1/Command | Found Prototype Device 38302 | -1/Command | Identified Adv. Particle Accelerator 38305 | -1/Command | Found Prototype Device 38305 | -1/Command | Identified Exp. Hardlight Generator 38309 | -1/Command | Found Prototype Device 38309 | -1/Command | Identified Exp. System Purifier 38339 | -1/Command | Found Prototype Energy Cannon 38339 | -1/Command | Identified Null Cannon 38421 | -1/Command | MAIN.C activated Command garrisons 38458 | -1/Command | Unknown forces attacked Command 38458 | -1/Command | Spotted EQ-000 38458 | -1/Command | Spotted EQ-003 38458 | -1/Command | Spotted EQ-005 38458 | -1/Command | Spotted EQ-006 38458 | -1/Command | Spotted EQ-004 38458 | -1/Command | Spotted EQ-001 38458 | -1/Command | Spotted EQ-011 38458 | -1/Command | Spotted EQ-002 38469 | -1/Command | Destroyed EQ-001 38476 | -1/Command | Destroyed EQ-002 38487 | -1/Command | Destroyed EQ-004 38555 | -1/Command | Spotted EQ-022 38555 | -1/Command | Spotted EQ-019 38555 | -1/Command | Spotted EQ-021 38555 | -1/Command | Spotted EQ-018 38559 | -1/Command | Destroyed EQ-021 38565 | -1/Command | Destroyed EQ-019 38569 | -1/Command | Destroyed EQ-022 38579 | -1/Command | Destroyed EQ-018 38590 | -1/Command | Spotted EQ-020 38601 | -1/Command | Destroyed EQ-020 38619 | -1/Command | Lost 6 allies 38633 | -1/Command | Spotted EQ-028 38658 | -1/Command | Spotted EQ-040 38658 | -1/Command | Spotted EQ-039 38658 | -1/Command | Spotted EQ-038 38668 | -1/Command | Spotted EQ-035 38669 | -1/Command | Destroyed EQ-038 38669 | -1/Command | Spotted EQ-030 38672 | -1/Command | Spotted EQ-050 38673 | -1/Command | Spotted EQ-013 38674 | -1/Command | Spotted EQ-042 38703 | -1/Command | Destroyed EQ-042 38706 | -1/Command | Spotted EQ-014 38708 | -1/Command | Spotted EQ-012 38714 | -1/Command | Spotted EQ-055 38722 | -1/Command | Destroyed EQ-055 38760 | -1/Command | Spotted EQ-045 38772 | -1/Command | Lost 8 allies 38775 | -1/Command | Destroyed EQ-083 38780 | -1/Command | Spotted EQ-081 38780 | -1/Command | Spotted EQ-060 38781 | -1/Command | Spotted EQ-073 38783 | -1/Command | Spotted EQ-080 38789 | -1/Command | Spotted EQ-043 38796 | -1/Command | Destroyed EQ-081 38803 | -1/Command | Destroyed EQ-045 38806 | -1/Command | Destroyed EQ-043 38808 | -1/Command | Spotted EQ-063 38816 | -1/Command | Destroyed EQ-063 38827 | -1/Command | Found Exp. Core Analyzer 38828 | -1/Command | Spotted EQ-077 38837 | -1/Command | Lost 3 allies 38857 | -1/Command | Destroyed EQ-077 38877 | -1/Command | Spotted EQ-084 38877 | -1/Command | Spotted EQ-090 38888 | -1/Command | Destroyed EQ-084 38889 | -1/Command | Spotted EQ-036 38894 | -1/Command | Destroyed EQ-036 38906 | -1/Command | Spotted EQ-108 38912 | -1/Command | Spotted EQ-099 38915 | -1/Command | Destroyed EQ-108 38916 | -1/Command | Spotted EQ-098 38928 | -1/Command | Destroyed EQ-098 38932 | -1/Command | Spotted EQ-105 38937 | -1/Command | Attackers retreated from Command 38939 | *** | Fortifying 0b10! Last Messages --------------- 38926_ The unstable cave ceiling collapses. 38927_ EQ-098 knocked back. 38928_ EQ-098 destroyed. 38929_ Acquired 8 matter. 38930_ EQ-099 Adv. Cooling System blasted off. 38930_ EQ-099 knocked back. 38932_ Destroyed Imp. Quantum Reactor. 38933_ Acquired 8 matter. 38933_ Slug penetrates MAIN.C. 38935_ EQ-099 suffers critical hit (Blast). 38935_ Destroyed Prototype Device. 38936_ EQ-099 destroyed. 38937_ ALERT: Enemy forces retreating. MAIN.C: I admit your assistance was pivotal here. It looks like I was right to trust you. This attack appears to have been designed to merely test our defenses, although it was nearly effective enough to force me to take the conflict to the next level. Investigating the origins of these bots should be one of our highest priorities... Map ----- +----------------------------------------------------+ | # ## T#????????????????????????#?# | | # ## ####= ##????????????????????????#?# | | # ## #### = ##????????????????????????#?# | | ######+## # ]]=! =#????????????????????????#?# | | #[!]= %=#????????????????????????#?# | | #!! = #????????????????????????#?# | | ######### # ==#????????????????????????#?# | | ????????# #########????????????????????????#?# | | ????????# #????????????????????????????????#?# | | ????????# #????????????????????????????????#?# | | ????????# #????????????????????????????????#?# | | ????????# #?###########################????#?# | | ?######## #?#????????# ##??###????????#????#?# | | ?# # #?#?##############;########?#????#?# | | ?# # #?#?# ########## | | ?# # #?#?# %% #?#??????? | | ?# # #?#?# % ########## | | ?# # #?#?# % % | | ?# # #?#?#" %! ! ! | | ####"#+## #?#?#" % % % ! [%! | | #?#?# % ! ] ########## | | % #?#?# ![%% #?#??????? | | %=|! #?#?# " %% !!%!] ########## | | ![%==[ #?#?# %% %%%% "#?#????#?# | | ####### !=%!%#?### % M |=% % "#?#????#?# | | ###### ?# # =@! %! * !! ""#?#????#?# | | ## # %%=%[% !% "#?#????#?# | | = = # %% =% ]! #?#????#?# | | % %% !== % ###????#?# | | % ! % % % % =%% %;##????#?# | | !! % !!% ! %[ % =! ###????#?# | | !! % % * =[% Y % %%% ;##????#?# | | ! % % % #### %! %% ###????#?# | | ! #?#?# %% %#?#????#?# | | ^^#?#?#* % " % %#?#????#?# | | #+" ## # #?#?##########;########;###?#????#?# | | #?# ### #?#??????????# #???????##???#????#?# | | #?# ## #?###########################????#?# | | ]! #?# ## #????????????????????????????????#?# | | ]! #?# ## #????????????????????????????????#?# | | !! #?# ## #????????????????????????????????#?# | | ### ## #????????????????????????????????#?# | | ##### ########????????????????????????????????#?# | | #????????????????????????????????????#?# | | #????????????????????????????????????#?# | | #????????????????????????????????????#?# | | #????????????????????????????????????#?# | | #????????????????????????????????????#?# | | #????????????????????????????????????#?# | | #####+###+#????????????????????????????????????#?# | +----------------------------------------------------+ Best States ------------- Heat Dissipation 159 Energy Generation 105 Energy Capacity 1200 Matter Stores 300 Matter Capacity 300 Sight Range 24 Robot Scan Range 16 Terrain Scan Range 20 Terrain Scan Density 210 Jamming Range 16 Corruption Containment 12 Armor Coverage 1800 Resistance: KI 20 Resistance: EM 100 Weapon Cycling 25 Evasion (%) 40 Targeting Accuracy 20 Melee Accuracy 12 Core Analysis 12 Recoil Reduction 6 Particle Charging 50 Kinecelleration 50 Offensive Hacking 24 Relay Coupler Types 2 Relay Coupler Value 58 Item Schematics ----------------- Huge Storage Unit | -10/Materials | Hacked Robot Schematics ------------------ None Fabricated ------------ Quantum Reactor | x2 | -2/Research | Preloaded Repaired ---------- Exp. Cooling System | 22% | -2/Quarantine | Broken Alien Tech Used ----------------- Core Stripper Spacefold Activator Integrity Redistributor Core Expander Subatomic Replicator LRC Insulator Core Regenerator Achievements -------------- Great Explorer Sniper Superinsulated Challenges ------------ None Game ------ Seed PlexusLinkedNetwork Manual? 0 Play Time 07:25:48 Cumulative 165.2 hours Start 2025.08.07 @ 02:17:52 End 2025.08.09 @ 17:23:04 Sessions 12 Manual Loads 0 Difficulty Rogue Special Mode None Game No. 79 Rogue 79 Adventurer 0 Explorer 0 Win Type 8 Total 15 Types 4/1/4/1/1/0/0/1/1/2 Lore% 68 Gallery% 68 Achievement% 65 Wizard Run 0 Options --------- Layout 0 ASCII 0 Keyboard 1 Movement Vi Keybinds 0 Fullscreen 2 Font 18/SmallcapsGlow Map View 76x50 Zoom Use 0% Tactical HUD 1 Map Filters NONE Filters NONE Steam 1 RUN: e6c0819d-93dc-4f1a-a16a-f23a6e3e1c49